{"text_format":"1","workbook":"xlsx","n_sheets":6,"sheets":["Instructions","Invoice Details","Annexure 1","Annexure 2","Annexure 3","Lookup"],"not_rendered":{"charts":0,"images":0,"macros":1,"external_links":0,"defined_names":7,"comments":0,"pivot_tables":0},"unopened":[],"bounds":{"document_bytes":16777216,"sheet_cells":100000,"rows_first":2000,"rows_last":500,"rows_between":2000,"halvings":0,"cell_chars":16384,"cell_head_chars":4096},"cells_cut":0,"cells_raw":0,"read":"whole","date_system":"1900"}

{"sheet":"Instructions","index":0,"n_rows":11,"n_cols":3,"rows_kept":11,"cut":false,"hidden":false,"merged":[[1,1,1,2]]}
[]
[null,"DSPF Invoice Upload"]
[]
[]
[null,"Sr. no","INSTRUCTIONS"]
[]
[null,1,"SEZ Online would automatically generate the SEZ Reference Number for each Invoice after request submission."]
[null,2,"All amounts should corresponds to Service Accounting Code."]
[null,3,"Please refer sheet \"Annexure 1\" for Service Accounting Code and their descriptions."]
[null,4,"Please refer sheet \"Annexure 2\" for Country Code"]
[null,5,"Please refer sheet \"Annexure 3\" for "]

{"sheet":"Invoice Details","index":1,"n_rows":550,"n_cols":25,"rows_kept":550,"cut":false,"hidden":false,"merged":[[0,0,0,2],[0,3,0,6]]}
[null,null,null,"SEZOnline DTA Services Procurement Invoice Upload",null,null,null,null,"Version",null,null,null,null,"1.1.0"]
[]
["Sr No","Invoice Type *","Invoice Number *","Invoice Date *\n(MM/DD/YYYY)","Amount in INR *","SAC *","Service Description *","DTA Supplier Name *"," DTA Supplier Address 1 *","DTA Supplier Address 2","DTA Supplier City","DTA Supplier State *","DTA Supplier PIN","GSTIN/UIN of DTA Supplier *","DTA Supplier email id *","Zero Rated Supply \n(On Payment of IGST / Against Bond LUT) *","LUT / Bond/Challan Number ","LUT / Bond/Challan date\n(MM/DD/YYYY)","IGST Rate","IGST Amount","IGST Compensation Cess Rate","IGST Compensation Cess Amount","Invoice Payment Details","Invoice Payment Date\n(MM/DD/YYYY)","DOC Approved Service Description"]
[null,null,null,null,null,null,null,null,null,null,null,null,null,null,null,null,null,null,null,{"$f":"ROUND(E4,2)*S4/100","v":0},null,{"$f":"ROUND(E4,2)*U4/100","v":0}]
[null,null,null,null,null,null,null,null,null,null,null,null,null,null,null,null,null,null,null,0,null,0]
[null,null,null,null,null,null,null,null,null,null,null,null,null,null,null,null,null,null,null,0,null,0]
[null,null,null,null,null,null,null,null,null,null,null,null,null,null,null,null,null,null,null,0,null,0]
[null,null,null,null,null,null,null,null,null,null,null,null,null,null,null,null,null,null,null,0,null,0]
[null,null,null,null,null,null,null,null,null,null,null,null,null,null,null,null,null,null,null,0,null,0]
[null,null,null,null,null,null,null,null,null,null,null,null,null,null,null,null,null,null,null,0,null,0]
[null,null,null,null,null,null,null,null,null,null,null,null,null,null,null,null,null,null,null,0,null,0]
[null,null,null,null,null,null,null,null,null,null,null,null,null,null,null,null,null,null,null,0,null,0]
[null,null,null,null,null,null,null,null,null,null,null,null,null,null,null,null,null,null,null,0,null,0]
[null,null,null,null,null,null,null,null,null,null,null,null,null,null,null,null,null,null,null,0,null,0]
[null,null,null,null,null,null,null,null,null,null,null,null,null,null,null,null,null,null,null,0,null,0]
[null,null,null,null,null,null,null,null,null,null,null,null,null,null,null,null,null,null,null,0,null,0]
[null,null,null,null,null,null,null,null,null,null,null,null,null,null,null,null,null,null,null,0,null,0]
[null,null,null,null,null,null,null,null,null,null,null,null,null,null,null,null,null,null,null,0,null,0]
[null,null,null,null,null,null,null,null,null,null,null,null,null,null,null,null,null,null,null,0,null,0]
[null,null,null,null,null,null,null,null,null,null,null,null,null,null,null,null,null,null,null,0,null,0]
[null,null,null,null,null,null,null,null,null,null,null,null,null,null,null,null,null,null,null,0,null,0]
[null,null,null,null,null,null,null,null,null,null,null,null,null,null,null,null,null,null,null,0,null,0]
[null,null,null,null,null,null,null,null,null,null,null,null,null,null,null,null,null,null,null,0,null,0]
[null,null,null,null,null,null,null,null,null,null,null,null,null,null,null,null,null,null,null,0,null,0]
[null,null,null,null,null,null,null,null,null,null,null,null,null,null,null,null,null,null,null,0,null,0]
[null,null,null,null,null,null,null,null,null,null,null,null,null,null,null,null,null,null,null,0,null,0]
[null,null,null,null,null,null,null,null,null,null,null,null,null,null,null,null,null,null,null,0,null,0]
[null,null,null,null,null,null,null,null,null,null,null,null,null,null,null,null,null,null,null,0,null,0]
[null,null,null,null,null,null,null,null,null,null,null,null,null,null,null,null,null,null,null,0,null,0]
[null,null,null,null,null,null,null,null,null,null,null,null,null,null,null,null,null,null,null,0,null,0]
[null,null,null,null,null,null,null,null,null,null,null,null,null,null,null,null,null,null,null,0,null,0]
[null,null,null,null,null,null,null,null,null,null,null,null,null,null,null,null,null,null,null,0,null,0]
[null,null,null,null,null,null,null,null,null,null,null,null,null,null,null,null,null,null,null,0,null,0]
[null,null,null,null,null,null,null,null,null,null,null,null,null,null,null,null,null,null,null,0,null,0]
[null,null,null,null,null,null,null,null,null,null,null,null,null,null,null,null,null,null,null,0,null,0]
[null,null,null,null,null,null,null,null,null,null,null,null,null,null,null,null,null,null,null,0,null,0]
[null,null,null,null,null,null,null,null,null,null,null,null,null,null,null,null,null,null,null,0,null,0]
[null,null,null,null,null,null,null,null,null,null,null,null,null,null,null,null,null,null,null,0,null,0]
[null,null,null,null,null,null,null,null,null,null,null,null,null,null,null,null,null,null,null,0,null,0]
[null,null,null,null,null,null,null,null,null,null,null,null,null,null,null,null,null,null,null,0,null,0]
[null,null,null,null,null,null,null,null,null,null,null,null,null,null,null,null,null,null,null,0,null,0]
[null,null,null,null,null,null,null,null,null,null,null,null,null,null,null,null,null,null,null,0,null,0]
[null,null,null,null,null,null,null,null,null,null,null,null,null,null,null,null,null,null,null,0,null,0]
[null,null,null,null,null,null,null,null,null,null,null,null,null,null,null,null,null,null,null,0,null,0]
[null,null,null,null,null,null,null,null,null,null,null,null,null,null,null,null,null,null,null,0,null,0]
[null,null,null,null,null,null,null,null,null,null,null,null,null,null,null,null,null,null,null,0,null,0]
[null,null,null,null,null,null,null,null,null,null,null,null,null,null,null,null,null,null,null,0,null,0]
[null,null,null,null,null,null,null,null,null,null,null,null,null,null,null,null,null,null,null,0,null,0]
[null,null,null,null,null,null,null,null,null,null,null,null,null,null,null,null,null,null,null,0,null,0]
[null,null,null,null,null,null,null,null,null,null,null,null,null,null,null,null,null,null,null,0,null,0]
[null,null,null,null,null,null,null,null,null,null,null,null,null,null,null,null,null,null,null,0,null,0]
[null,null,null,null,null,null,null,null,null,null,null,null,null,null,null,null,null,null,null,0,null,0]
[null,null,null,null,null,null,null,null,null,null,null,null,null,null,null,null,null,null,null,0,null,0]
[null,null,null,null,null,null,null,null,null,null,null,null,null,null,null,null,null,null,null,0,null,0]
[null,null,null,null,null,null,null,null,null,null,null,null,null,null,null,null,null,null,null,0,null,0]
[null,null,null,null,null,null,null,null,null,null,null,null,null,null,null,null,null,null,null,0,null,0]
[null,null,null,null,null,null,null,null,null,null,null,null,null,null,null,null,null,null,null,0,null,0]
[null,null,null,null,null,null,null,null,null,null,null,null,null,null,null,null,null,null,null,0,null,0]
[null,null,null,null,null,null,null,null,null,null,null,null,null,null,null,null,null,null,null,0,null,0]
[null,null,null,null,null,null,null,null,null,null,null,null,null,null,null,null,null,null,null,0,null,0]
[null,null,null,null,null,null,null,null,null,null,null,null,null,null,null,null,null,null,null,0,null,0]
[null,null,null,null,null,null,null,null,null,null,null,null,null,null,null,null,null,null,null,0,null,0]
[null,null,null,null,null,null,null,null,null,null,null,null,null,null,null,null,null,null,null,0,null,0]
[null,null,null,null,null,null,null,null,null,null,null,null,null,null,null,null,null,null,null,0,null,0]
[null,null,null,null,null,null,null,null,null,null,null,null,null,null,null,null,null,null,null,0,null,0]
[null,null,null,null,null,null,null,null,null,null,null,null,null,null,null,null,null,null,null,0,null,0]
[null,null,null,null,null,null,null,null,null,null,null,null,null,null,null,null,null,null,null,0,null,0]
[null,null,null,null,null,null,null,null,null,null,null,null,null,null,null,null,null,null,null,{"$f":"ROUND(E68,2)*S68/100","v":0},null,{"$f":"ROUND(E68,2)*U68/100","v":0}]
[null,null,null,null,null,null,null,null,null,null,null,null,null,null,null,null,null,null,null,0,null,0]
[null,null,null,null,null,null,null,null,null,null,null,null,null,null,null,null,null,null,null,0,null,0]
[null,null,null,null,null,null,null,null,null,null,null,null,null,null,null,null,null,null,null,0,null,0]
[null,null,null,null,null,null,null,null,null,null,null,null,null,null,null,null,null,null,null,0,null,0]
[null,null,null,null,null,null,null,null,null,null,null,null,null,null,null,null,null,null,null,0,null,0]
[null,null,null,null,null,null,null,null,null,null,null,null,null,null,null,null,null,null,null,0,null,0]
[null,null,null,null,null,null,null,null,null,null,null,null,null,null,null,null,null,null,null,0,null,0]
[null,null,null,null,null,null,null,null,null,null,null,null,null,null,null,null,null,null,null,0,null,0]
[null,null,null,null,null,null,null,null,null,null,null,null,null,null,null,null,null,null,null,0,null,0]
[null,null,null,null,null,null,null,null,null,null,null,null,null,null,null,null,null,null,null,0,null,0]
[null,null,null,null,null,null,null,null,null,null,null,null,null,null,null,null,null,null,null,0,null,0]
[null,null,null,null,null,null,null,null,null,null,null,null,null,null,null,null,null,null,null,0,null,0]
[null,null,null,null,null,null,null,null,null,null,null,null,null,null,null,null,null,null,null,0,null,0]
[null,null,null,null,null,null,null,null,null,null,null,null,null,null,null,null,null,null,null,0,null,0]
[null,null,null,null,null,null,null,null,null,null,null,null,null,null,null,null,null,null,null,0,null,0]
[null,null,null,null,null,null,null,null,null,null,null,null,null,null,null,null,null,null,null,0,null,0]
[null,null,null,null,null,null,null,null,null,null,null,null,null,null,null,null,null,null,null,0,null,0]
[null,null,null,null,null,null,null,null,null,null,null,null,null,null,null,null,null,null,null,0,null,0]
[null,null,null,null,null,null,null,null,null,null,null,null,null,null,null,null,null,null,null,0,null,0]
[null,null,null,null,null,null,null,null,null,null,null,null,null,null,null,null,null,null,null,0,null,0]
[null,null,null,null,null,null,null,null,null,null,null,null,null,null,null,null,null,null,null,0,null,0]
[null,null,null,null,null,null,null,null,null,null,null,null,null,null,null,null,null,null,null,0,null,0]
[null,null,null,null,null,null,null,null,null,null,null,null,null,null,null,null,null,null,null,0,null,0]
[null,null,null,null,null,null,null,null,null,null,null,null,null,null,null,null,null,null,null,0,null,0]
[null,null,null,null,null,null,null,null,null,null,null,null,null,null,null,null,null,null,null,0,null,0]
[null,null,null,null,null,null,null,null,null,null,null,null,null,null,null,null,null,null,null,0,null,0]
[null,null,null,null,null,null,null,null,null,null,null,null,null,null,null,null,null,null,null,0,null,0]
[null,null,null,null,null,null,null,null,null,null,null,null,null,null,null,null,null,null,null,0,null,0]
[null,null,null,null,null,null,null,null,null,null,null,null,null,null,null,null,null,null,null,0,null,0]
[null,null,null,null,null,null,null,null,null,null,null,null,null,null,null,null,null,null,null,0,null,0]
[null,null,null,null,null,null,null,null,null,null,null,null,null,null,null,null,null,null,null,0,null,0]
[null,null,null,null,null,null,null,null,null,null,null,null,null,null,null,null,null,null,null,0,null,0]
[null,null,null,null,null,null,null,null,null,null,null,null,null,null,null,null,null,null,null,0,null,0]
[null,null,null,null,null,null,null,null,null,null,null,null,null,null,null,null,null,null,null,0,null,0]
[null,null,null,null,null,null,null,null,null,null,null,null,null,null,null,null,null,null,null,0,null,0]
[null,null,null,null,null,null,null,null,null,null,null,null,null,null,null,null,null,null,null,0,null,0]
[null,null,null,null,null,null,null,null,null,null,null,null,null,null,null,null,null,null,null,0,null,0]
[null,null,null,null,null,null,null,null,null,null,null,null,null,null,null,null,null,null,null,0,null,0]
[null,null,null,null,null,null,null,null,null,null,null,null,null,null,null,null,null,null,null,0,null,0]
[null,null,null,null,null,null,null,null,null,null,null,null,null,null,null,null,null,null,null,0,null,0]
[null,null,null,null,null,null,null,null,null,null,null,null,null,null,null,null,null,null,null,0,null,0]
[null,null,null,null,null,null,null,null,null,null,null,null,null,null,null,null,null,null,null,0,null,0]
[null,null,null,null,null,null,null,null,null,null,null,null,null,null,null,null,null,null,null,0,null,0]
[null,null,null,null,null,null,null,null,null,null,null,null,null,null,null,null,null,null,null,0,null,0]
[null,null,null,null,null,null,null,null,null,null,null,null,null,null,null,null,null,null,null,0,null,0]
[null,null,null,null,null,null,null,null,null,null,null,null,null,null,null,null,null,null,null,0,null,0]
[null,null,null,null,null,null,null,null,null,null,null,null,null,null,null,null,null,null,null,0,null,0]
[null,null,null,null,null,null,null,null,null,null,null,null,null,null,null,null,null,null,null,0,null,0]
[null,null,null,null,null,null,null,null,null,null,null,null,null,null,null,null,null,null,null,0,null,0]
[null,null,null,null,null,null,null,null,null,null,null,null,null,null,null,null,null,null,null,0,null,0]
[null,null,null,null,null,null,null,null,null,null,null,null,null,null,null,null,null,null,null,0,null,0]
[null,null,null,null,null,null,null,null,null,null,null,null,null,null,null,null,null,null,null,0,null,0]
[null,null,null,null,null,null,null,null,null,null,null,null,null,null,null,null,null,null,null,0,null,0]
[null,null,null,null,null,null,null,null,null,null,null,null,null,null,null,null,null,null,null,0,null,0]
[null,null,null,null,null,null,null,null,null,null,null,null,null,null,null,null,null,null,null,0,null,0]
[null,null,null,null,null,null,null,null,null,null,null,null,null,null,null,null,null,null,null,0,null,0]
[null,null,null,null,null,null,null,null,null,null,null,null,null,null,null,null,null,null,null,0,null,0]
[null,null,null,null,null,null,null,null,null,null,null,null,null,null,null,null,null,null,null,0,null,0]
[null,null,null,null,null,null,null,null,null,null,null,null,null,null,null,null,null,null,null,0,null,0]
[null,null,null,null,null,null,null,null,null,null,null,null,null,null,null,null,null,null,null,0,null,0]
[null,null,null,null,null,null,null,null,null,null,null,null,null,null,null,null,null,null,null,0,null,0]
[null,null,null,null,null,null,null,null,null,null,null,null,null,null,null,null,null,null,null,0,null,0]
[null,null,null,null,null,null,null,null,null,null,null,null,null,null,null,null,null,null,null,0,null,0]
[null,null,null,null,null,null,null,null,null,null,null,null,null,null,null,null,null,null,null,{"$f":"ROUND(E132,2)*S132/100","v":0},null,{"$f":"ROUND(E132,2)*U132/100","v":0}]
[null,null,null,null,null,null,null,null,null,null,null,null,null,null,null,null,null,null,null,0,null,0]
[null,null,null,null,null,null,null,null,null,null,null,null,null,null,null,null,null,null,null,0,null,0]
[null,null,null,null,null,null,null,null,null,null,null,null,null,null,null,null,null,null,null,0,null,0]
[null,null,null,null,null,null,null,null,null,null,null,null,null,null,null,null,null,null,null,0,null,0]
[null,null,null,null,null,null,null,null,null,null,null,null,null,null,null,null,null,null,null,0,null,0]
[null,null,null,null,null,null,null,null,null,null,null,null,null,null,null,null,null,null,null,0,null,0]
[null,null,null,null,null,null,null,null,null,null,null,null,null,null,null,null,null,null,null,0,null,0]
[null,null,null,null,null,null,null,null,null,null,null,null,null,null,null,null,null,null,null,0,null,0]
[null,null,null,null,null,null,null,null,null,null,null,null,null,null,null,null,null,null,null,0,null,0]
[null,null,null,null,null,null,null,null,null,null,null,null,null,null,null,null,null,null,null,0,null,0]
[null,null,null,null,null,null,null,null,null,null,null,null,null,null,null,null,null,null,null,0,null,0]
[null,null,null,null,null,null,null,null,null,null,null,null,null,null,null,null,null,null,null,0,null,0]
[null,null,null,null,null,null,null,null,null,null,null,null,null,null,null,null,null,null,null,0,null,0]
[null,null,null,null,null,null,null,null,null,null,null,null,null,null,null,null,null,null,null,0,null,0]
[null,null,null,null,null,null,null,null,null,null,null,null,null,null,null,null,null,null,null,0,null,0]
[null,null,null,null,null,null,null,null,null,null,null,null,null,null,null,null,null,null,null,0,null,0]
[null,null,null,null,null,null,null,null,null,null,null,null,null,null,null,null,null,null,null,0,null,0]
[null,null,null,null,null,null,null,null,null,null,null,null,null,null,null,null,null,null,null,0,null,0]
[null,null,null,null,null,null,null,null,null,null,null,null,null,null,null,null,null,null,null,0,null,0]
[null,null,null,null,null,null,null,null,null,null,null,null,null,null,null,null,null,null,null,0,null,0]
[null,null,null,null,null,null,null,null,null,null,null,null,null,null,null,null,null,null,null,0,null,0]
[null,null,null,null,null,null,null,null,null,null,null,null,null,null,null,null,null,null,null,0,null,0]
[null,null,null,null,null,null,null,null,null,null,null,null,null,null,null,null,null,null,null,0,null,0]
[null,null,null,null,null,null,null,null,null,null,null,null,null,null,null,null,null,null,null,0,null,0]
[null,null,null,null,null,null,null,null,null,null,null,null,null,null,null,null,null,null,null,0,null,0]
[null,null,null,null,null,null,null,null,null,null,null,null,null,null,null,null,null,null,null,0,null,0]
[null,null,null,null,null,null,null,null,null,null,null,null,null,null,null,null,null,null,null,0,null,0]
[null,null,null,null,null,null,null,null,null,null,null,null,null,null,null,null,null,null,null,0,null,0]
[null,null,null,null,null,null,null,null,null,null,null,null,null,null,null,null,null,null,null,0,null,0]
[null,null,null,null,null,null,null,null,null,null,null,null,null,null,null,null,null,null,null,0,null,0]
[null,null,null,null,null,null,null,null,null,null,null,null,null,null,null,null,null,null,null,0,null,0]
[null,null,null,null,null,null,null,null,null,null,null,null,null,null,null,null,null,null,null,0,null,0]
[null,null,null,null,null,null,null,null,null,null,null,null,null,null,null,null,null,null,null,0,null,0]
[null,null,null,null,null,null,null,null,null,null,null,null,null,null,null,null,null,null,null,0,null,0]
[null,null,null,null,null,null,null,null,null,null,null,null,null,null,null,null,null,null,null,0,null,0]
[null,null,null,null,null,null,null,null,null,null,null,null,null,null,null,null,null,null,null,0,null,0]
[null,null,null,null,null,null,null,null,null,null,null,null,null,null,null,null,null,null,null,0,null,0]
[null,null,null,null,null,null,null,null,null,null,null,null,null,null,null,null,null,null,null,0,null,0]
[null,null,null,null,null,null,null,null,null,null,null,null,null,null,null,null,null,null,null,0,null,0]
[null,null,null,null,null,null,null,null,null,null,null,null,null,null,null,null,null,null,null,0,null,0]
[null,null,null,null,null,null,null,null,null,null,null,null,null,null,null,null,null,null,null,0,null,0]
[null,null,null,null,null,null,null,null,null,null,null,null,null,null,null,null,null,null,null,0,null,0]
[null,null,null,null,null,null,null,null,null,null,null,null,null,null,null,null,null,null,null,0,null,0]
[null,null,null,null,null,null,null,null,null,null,null,null,null,null,null,null,null,null,null,0,null,0]
[null,null,null,null,null,null,null,null,null,null,null,null,null,null,null,null,null,null,null,0,null,0]
[null,null,null,null,null,null,null,null,null,null,null,null,null,null,null,null,null,null,null,0,null,0]
[null,null,null,null,null,null,null,null,null,null,null,null,null,null,null,null,null,null,null,0,null,0]
[null,null,null,null,null,null,null,null,null,null,null,null,null,null,null,null,null,null,null,0,null,0]
[null,null,null,null,null,null,null,null,null,null,null,null,null,null,null,null,null,null,null,0,null,0]
[null,null,null,null,null,null,null,null,null,null,null,null,null,null,null,null,null,null,null,0,null,0]
[null,null,null,null,null,null,null,null,null,null,null,null,null,null,null,null,null,null,null,0,null,0]
[null,null,null,null,null,null,null,null,null,null,null,null,null,null,null,null,null,null,null,0,null,0]
[null,null,null,null,null,null,null,null,null,null,null,null,null,null,null,null,null,null,null,0,null,0]
[null,null,null,null,null,null,null,null,null,null,null,null,null,null,null,null,null,null,null,0,null,0]
[null,null,null,null,null,null,null,null,null,null,null,null,null,null,null,null,null,null,null,0,null,0]
[null,null,null,null,null,null,null,null,null,null,null,null,null,null,null,null,null,null,null,0,null,0]
[null,null,null,null,null,null,null,null,null,null,null,null,null,null,null,null,null,null,null,0,null,0]
[null,null,null,null,null,null,null,null,null,null,null,null,null,null,null,null,null,null,null,0,null,0]
[null,null,null,null,null,null,null,null,null,null,null,null,null,null,null,null,null,null,null,0,null,0]
[null,null,null,null,null,null,null,null,null,null,null,null,null,null,null,null,null,null,null,0,null,0]
[null,null,null,null,null,null,null,null,null,null,null,null,null,null,null,null,null,null,null,0,null,0]
[null,null,null,null,null,null,null,null,null,null,null,null,null,null,null,null,null,null,null,0,null,0]
[null,null,null,null,null,null,null,null,null,null,null,null,null,null,null,null,null,null,null,0,null,0]
[null,null,null,null,null,null,null,null,null,null,null,null,null,null,null,null,null,null,null,{"$f":"ROUND(E196,2)*S196/100","v":0},null,{"$f":"ROUND(E196,2)*U196/100","v":0}]
[null,null,null,null,null,null,null,null,null,null,null,null,null,null,null,null,null,null,null,0,null,0]
[null,null,null,null,null,null,null,null,null,null,null,null,null,null,null,null,null,null,null,0,null,0]
[null,null,null,null,null,null,null,null,null,null,null,null,null,null,null,null,null,null,null,0,null,0]
[null,null,null,null,null,null,null,null,null,null,null,null,null,null,null,null,null,null,null,0,null,0]
[null,null,null,null,null,null,null,null,null,null,null,null,null,null,null,null,null,null,null,0,null,0]
[null,null,null,null,null,null,null,null,null,null,null,null,null,null,null,null,null,null,null,0,null,0]
[null,null,null,null,null,null,null,null,null,null,null,null,null,null,null,null,null,null,null,0,null,0]
[null,null,null,null,null,null,null,null,null,null,null,null,null,null,null,null,null,null,null,0,null,0]
[null,null,null,null,null,null,null,null,null,null,null,null,null,null,null,null,null,null,null,0,null,0]
[null,null,null,null,null,null,null,null,null,null,null,null,null,null,null,null,null,null,null,0,null,0]
[null,null,null,null,null,null,null,null,null,null,null,null,null,null,null,null,null,null,null,0,null,0]
[null,null,null,null,null,null,null,null,null,null,null,null,null,null,null,null,null,null,null,0,null,0]
[null,null,null,null,null,null,null,null,null,null,null,null,null,null,null,null,null,null,null,0,null,0]
[null,null,null,null,null,null,null,null,null,null,null,null,null,null,null,null,null,null,null,0,null,0]
[null,null,null,null,null,null,null,null,null,null,null,null,null,null,null,null,null,null,null,0,null,0]
[null,null,null,null,null,null,null,null,null,null,null,null,null,null,null,null,null,null,null,0,null,0]
[null,null,null,null,null,null,null,null,null,null,null,null,null,null,null,null,null,null,null,0,null,0]
[null,null,null,null,null,null,null,null,null,null,null,null,null,null,null,null,null,null,null,0,null,0]
[null,null,null,null,null,null,null,null,null,null,null,null,null,null,null,null,null,null,null,0,null,0]
[null,null,null,null,null,null,null,null,null,null,null,null,null,null,null,null,null,null,null,0,null,0]
[null,null,null,null,null,null,null,null,null,null,null,null,null,null,null,null,null,null,null,0,null,0]
[null,null,null,null,null,null,null,null,null,null,null,null,null,null,null,null,null,null,null,0,null,0]
[null,null,null,null,null,null,null,null,null,null,null,null,null,null,null,null,null,null,null,0,null,0]
[null,null,null,null,null,null,null,null,null,null,null,null,null,null,null,null,null,null,null,0,null,0]
[null,null,null,null,null,null,null,null,null,null,null,null,null,null,null,null,null,null,null,0,null,0]
[null,null,null,null,null,null,null,null,null,null,null,null,null,null,null,null,null,null,null,0,null,0]
[null,null,null,null,null,null,null,null,null,null,null,null,null,null,null,null,null,null,null,0,null,0]
[null,null,null,null,null,null,null,null,null,null,null,null,null,null,null,null,null,null,null,0,null,0]
[null,null,null,null,null,null,null,null,null,null,null,null,null,null,null,null,null,null,null,0,null,0]
[null,null,null,null,null,null,null,null,null,null,null,null,null,null,null,null,null,null,null,0,null,0]
[null,null,null,null,null,null,null,null,null,null,null,null,null,null,null,null,null,null,null,0,null,0]
[null,null,null,null,null,null,null,null,null,null,null,null,null,null,null,null,null,null,null,0,null,0]
[null,null,null,null,null,null,null,null,null,null,null,null,null,null,null,null,null,null,null,0,null,0]
[null,null,null,null,null,null,null,null,null,null,null,null,null,null,null,null,null,null,null,0,null,0]
[null,null,null,null,null,null,null,null,null,null,null,null,null,null,null,null,null,null,null,0,null,0]
[null,null,null,null,null,null,null,null,null,null,null,null,null,null,null,null,null,null,null,0,null,0]
[null,null,null,null,null,null,null,null,null,null,null,null,null,null,null,null,null,null,null,0,null,0]
[null,null,null,null,null,null,null,null,null,null,null,null,null,null,null,null,null,null,null,0,null,0]
[null,null,null,null,null,null,null,null,null,null,null,null,null,null,null,null,null,null,null,0,null,0]
[null,null,null,null,null,null,null,null,null,null,null,null,null,null,null,null,null,null,null,0,null,0]
[null,null,null,null,null,null,null,null,null,null,null,null,null,null,null,null,null,null,null,0,null,0]
[null,null,null,null,null,null,null,null,null,null,null,null,null,null,null,null,null,null,null,0,null,0]
[null,null,null,null,null,null,null,null,null,null,null,null,null,null,null,null,null,null,null,0,null,0]
[null,null,null,null,null,null,null,null,null,null,null,null,null,null,null,null,null,null,null,0,null,0]
[null,null,null,null,null,null,null,null,null,null,null,null,null,null,null,null,null,null,null,0,null,0]
[null,null,null,null,null,null,null,null,null,null,null,null,null,null,null,null,null,null,null,0,null,0]
[null,null,null,null,null,null,null,null,null,null,null,null,null,null,null,null,null,null,null,0,null,0]
[null,null,null,null,null,null,null,null,null,null,null,null,null,null,null,null,null,null,null,0,null,0]
[null,null,null,null,null,null,null,null,null,null,null,null,null,null,null,null,null,null,null,0,null,0]
[null,null,null,null,null,null,null,null,null,null,null,null,null,null,null,null,null,null,null,0,null,0]
[null,null,null,null,null,null,null,null,null,null,null,null,null,null,null,null,null,null,null,0,null,0]
[null,null,null,null,null,null,null,null,null,null,null,null,null,null,null,null,null,null,null,0,null,0]
[null,null,null,null,null,null,null,null,null,null,null,null,null,null,null,null,null,null,null,0,null,0]
[null,null,null,null,null,null,null,null,null,null,null,null,null,null,null,null,null,null,null,0,null,0]
[null,null,null,null,null,null,null,null,null,null,null,null,null,null,null,null,null,null,null,0,null,0]
[null,null,null,null,null,null,null,null,null,null,null,null,null,null,null,null,null,null,null,0,null,0]
[null,null,null,null,null,null,null,null,null,null,null,null,null,null,null,null,null,null,null,0,null,0]
[null,null,null,null,null,null,null,null,null,null,null,null,null,null,null,null,null,null,null,0,null,0]
[null,null,null,null,null,null,null,null,null,null,null,null,null,null,null,null,null,null,null,0,null,0]
[null,null,null,null,null,null,null,null,null,null,null,null,null,null,null,null,null,null,null,0,null,0]
[null,null,null,null,null,null,null,null,null,null,null,null,null,null,null,null,null,null,null,0,null,0]
[null,null,null,null,null,null,null,null,null,null,null,null,null,null,null,null,null,null,null,0,null,0]
[null,null,null,null,null,null,null,null,null,null,null,null,null,null,null,null,null,null,null,0,null,0]
[null,null,null,null,null,null,null,null,null,null,null,null,null,null,null,null,null,null,null,{"$f":"ROUND(E260,2)*S260/100","v":0},null,{"$f":"ROUND(E260,2)*U260/100","v":0}]
[null,null,null,null,null,null,null,null,null,null,null,null,null,null,null,null,null,null,null,0,null,0]
[null,null,null,null,null,null,null,null,null,null,null,null,null,null,null,null,null,null,null,0,null,0]
[null,null,null,null,null,null,null,null,null,null,null,null,null,null,null,null,null,null,null,0,null,0]
[null,null,null,null,null,null,null,null,null,null,null,null,null,null,null,null,null,null,null,0,null,0]
[null,null,null,null,null,null,null,null,null,null,null,null,null,null,null,null,null,null,null,0,null,0]
[null,null,null,null,null,null,null,null,null,null,null,null,null,null,null,null,null,null,null,0,null,0]
[null,null,null,null,null,null,null,null,null,null,null,null,null,null,null,null,null,null,null,0,null,0]
[null,null,null,null,null,null,null,null,null,null,null,null,null,null,null,null,null,null,null,0,null,0]
[null,null,null,null,null,null,null,null,null,null,null,null,null,null,null,null,null,null,null,0,null,0]
[null,null,null,null,null,null,null,null,null,null,null,null,null,null,null,null,null,null,null,0,null,0]
[null,null,null,null,null,null,null,null,null,null,null,null,null,null,null,null,null,null,null,0,null,0]
[null,null,null,null,null,null,null,null,null,null,null,null,null,null,null,null,null,null,null,0,null,0]
[null,null,null,null,null,null,null,null,null,null,null,null,null,null,null,null,null,null,null,0,null,0]
[null,null,null,null,null,null,null,null,null,null,null,null,null,null,null,null,null,null,null,0,null,0]
[null,null,null,null,null,null,null,null,null,null,null,null,null,null,null,null,null,null,null,0,null,0]
[null,null,null,null,null,null,null,null,null,null,null,null,null,null,null,null,null,null,null,0,null,0]
[null,null,null,null,null,null,null,null,null,null,null,null,null,null,null,null,null,null,null,0,null,0]
[null,null,null,null,null,null,null,null,null,null,null,null,null,null,null,null,null,null,null,0,null,0]
[null,null,null,null,null,null,null,null,null,null,null,null,null,null,null,null,null,null,null,0,null,0]
[null,null,null,null,null,null,null,null,null,null,null,null,null,null,null,null,null,null,null,0,null,0]
[null,null,null,null,null,null,null,null,null,null,null,null,null,null,null,null,null,null,null,0,null,0]
[null,null,null,null,null,null,null,null,null,null,null,null,null,null,null,null,null,null,null,0,null,0]
[null,null,null,null,null,null,null,null,null,null,null,null,null,null,null,null,null,null,null,0,null,0]
[null,null,null,null,null,null,null,null,null,null,null,null,null,null,null,null,null,null,null,0,null,0]
[null,null,null,null,null,null,null,null,null,null,null,null,null,null,null,null,null,null,null,0,null,0]
[null,null,null,null,null,null,null,null,null,null,null,null,null,null,null,null,null,null,null,0,null,0]
[null,null,null,null,null,null,null,null,null,null,null,null,null,null,null,null,null,null,null,0,null,0]
[null,null,null,null,null,null,null,null,null,null,null,null,null,null,null,null,null,null,null,0,null,0]
[null,null,null,null,null,null,null,null,null,null,null,null,null,null,null,null,null,null,null,0,null,0]
[null,null,null,null,null,null,null,null,null,null,null,null,null,null,null,null,null,null,null,0,null,0]
[null,null,null,null,null,null,null,null,null,null,null,null,null,null,null,null,null,null,null,0,null,0]
[null,null,null,null,null,null,null,null,null,null,null,null,null,null,null,null,null,null,null,0,null,0]
[null,null,null,null,null,null,null,null,null,null,null,null,null,null,null,null,null,null,null,0,null,0]
[null,null,null,null,null,null,null,null,null,null,null,null,null,null,null,null,null,null,null,0,null,0]
[null,null,null,null,null,null,null,null,null,null,null,null,null,null,null,null,null,null,null,0,null,0]
[null,null,null,null,null,null,null,null,null,null,null,null,null,null,null,null,null,null,null,0,null,0]
[null,null,null,null,null,null,null,null,null,null,null,null,null,null,null,null,null,null,null,0,null,0]
[null,null,null,null,null,null,null,null,null,null,null,null,null,null,null,null,null,null,null,0,null,0]
[null,null,null,null,null,null,null,null,null,null,null,null,null,null,null,null,null,null,null,0,null,0]
[null,null,null,null,null,null,null,null,null,null,null,null,null,null,null,null,null,null,null,0,null,0]
[null,null,null,null,null,null,null,null,null,null,null,null,null,null,null,null,null,null,null,0,null,0]
[null,null,null,null,null,null,null,null,null,null,null,null,null,null,null,null,null,null,null,0,null,0]
[null,null,null,null,null,null,null,null,null,null,null,null,null,null,null,null,null,null,null,0,null,0]
[null,null,null,null,null,null,null,null,null,null,null,null,null,null,null,null,null,null,null,0,null,0]
[null,null,null,null,null,null,null,null,null,null,null,null,null,null,null,null,null,null,null,0,null,0]
[null,null,null,null,null,null,null,null,null,null,null,null,null,null,null,null,null,null,null,0,null,0]
[null,null,null,null,null,null,null,null,null,null,null,null,null,null,null,null,null,null,null,0,null,0]
[null,null,null,null,null,null,null,null,null,null,null,null,null,null,null,null,null,null,null,0,null,0]
[null,null,null,null,null,null,null,null,null,null,null,null,null,null,null,null,null,null,null,0,null,0]
[null,null,null,null,null,null,null,null,null,null,null,null,null,null,null,null,null,null,null,0,null,0]
[null,null,null,null,null,null,null,null,null,null,null,null,null,null,null,null,null,null,null,0,null,0]
[null,null,null,null,null,null,null,null,null,null,null,null,null,null,null,null,null,null,null,0,null,0]
[null,null,null,null,null,null,null,null,null,null,null,null,null,null,null,null,null,null,null,0,null,0]
[null,null,null,null,null,null,null,null,null,null,null,null,null,null,null,null,null,null,null,0,null,0]
[null,null,null,null,null,null,null,null,null,null,null,null,null,null,null,null,null,null,null,0,null,0]
[null,null,null,null,null,null,null,null,null,null,null,null,null,null,null,null,null,null,null,0,null,0]
[null,null,null,null,null,null,null,null,null,null,null,null,null,null,null,null,null,null,null,0,null,0]
[null,null,null,null,null,null,null,null,null,null,null,null,null,null,null,null,null,null,null,0,null,0]
[null,null,null,null,null,null,null,null,null,null,null,null,null,null,null,null,null,null,null,0,null,0]
[null,null,null,null,null,null,null,null,null,null,null,null,null,null,null,null,null,null,null,0,null,0]
[null,null,null,null,null,null,null,null,null,null,null,null,null,null,null,null,null,null,null,0,null,0]
[null,null,null,null,null,null,null,null,null,null,null,null,null,null,null,null,null,null,null,0,null,0]
[null,null,null,null,null,null,null,null,null,null,null,null,null,null,null,null,null,null,null,0,null,0]
[null,null,null,null,null,null,null,null,null,null,null,null,null,null,null,null,null,null,null,{"$f":"ROUND(E324,2)*S324/100","v":0},null,{"$f":"ROUND(E324,2)*U324/100","v":0}]
[null,null,null,null,null,null,null,null,null,null,null,null,null,null,null,null,null,null,null,0,null,0]
[null,null,null,null,null,null,null,null,null,null,null,null,null,null,null,null,null,null,null,0,null,0]
[null,null,null,null,null,null,null,null,null,null,null,null,null,null,null,null,null,null,null,0,null,0]
[null,null,null,null,null,null,null,null,null,null,null,null,null,null,null,null,null,null,null,0,null,0]
[null,null,null,null,null,null,null,null,null,null,null,null,null,null,null,null,null,null,null,0,null,0]
[null,null,null,null,null,null,null,null,null,null,null,null,null,null,null,null,null,null,null,0,null,0]
[null,null,null,null,null,null,null,null,null,null,null,null,null,null,null,null,null,null,null,0,null,0]
[null,null,null,null,null,null,null,null,null,null,null,null,null,null,null,null,null,null,null,0,null,0]
[null,null,null,null,null,null,null,null,null,null,null,null,null,null,null,null,null,null,null,0,null,0]
[null,null,null,null,null,null,null,null,null,null,null,null,null,null,null,null,null,null,null,0,null,0]
[null,null,null,null,null,null,null,null,null,null,null,null,null,null,null,null,null,null,null,0,null,0]
[null,null,null,null,null,null,null,null,null,null,null,null,null,null,null,null,null,null,null,0,null,0]
[null,null,null,null,null,null,null,null,null,null,null,null,null,null,null,null,null,null,null,0,null,0]
[null,null,null,null,null,null,null,null,null,null,null,null,null,null,null,null,null,null,null,0,null,0]
[null,null,null,null,null,null,null,null,null,null,null,null,null,null,null,null,null,null,null,0,null,0]
[null,null,null,null,null,null,null,null,null,null,null,null,null,null,null,null,null,null,null,0,null,0]
[null,null,null,null,null,null,null,null,null,null,null,null,null,null,null,null,null,null,null,0,null,0]
[null,null,null,null,null,null,null,null,null,null,null,null,null,null,null,null,null,null,null,0,null,0]
[null,null,null,null,null,null,null,null,null,null,null,null,null,null,null,null,null,null,null,0,null,0]
[null,null,null,null,null,null,null,null,null,null,null,null,null,null,null,null,null,null,null,0,null,0]
[null,null,null,null,null,null,null,null,null,null,null,null,null,null,null,null,null,null,null,0,null,0]
[null,null,null,null,null,null,null,null,null,null,null,null,null,null,null,null,null,null,null,0,null,0]
[null,null,null,null,null,null,null,null,null,null,null,null,null,null,null,null,null,null,null,0,null,0]
[null,null,null,null,null,null,null,null,null,null,null,null,null,null,null,null,null,null,null,0,null,0]
[null,null,null,null,null,null,null,null,null,null,null,null,null,null,null,null,null,null,null,0,null,0]
[null,null,null,null,null,null,null,null,null,null,null,null,null,null,null,null,null,null,null,0,null,0]
[null,null,null,null,null,null,null,null,null,null,null,null,null,null,null,null,null,null,null,0,null,0]
[null,null,null,null,null,null,null,null,null,null,null,null,null,null,null,null,null,null,null,0,null,0]
[null,null,null,null,null,null,null,null,null,null,null,null,null,null,null,null,null,null,null,0,null,0]
[null,null,null,null,null,null,null,null,null,null,null,null,null,null,null,null,null,null,null,0,null,0]
[null,null,null,null,null,null,null,null,null,null,null,null,null,null,null,null,null,null,null,0,null,0]
[null,null,null,null,null,null,null,null,null,null,null,null,null,null,null,null,null,null,null,0,null,0]
[null,null,null,null,null,null,null,null,null,null,null,null,null,null,null,null,null,null,null,0,null,0]
[null,null,null,null,null,null,null,null,null,null,null,null,null,null,null,null,null,null,null,0,null,0]
[null,null,null,null,null,null,null,null,null,null,null,null,null,null,null,null,null,null,null,0,null,0]
[null,null,null,null,null,null,null,null,null,null,null,null,null,null,null,null,null,null,null,0,null,0]
[null,null,null,null,null,null,null,null,null,null,null,null,null,null,null,null,null,null,null,0,null,0]
[null,null,null,null,null,null,null,null,null,null,null,null,null,null,null,null,null,null,null,0,null,0]
[null,null,null,null,null,null,null,null,null,null,null,null,null,null,null,null,null,null,null,0,null,0]
[null,null,null,null,null,null,null,null,null,null,null,null,null,null,null,null,null,null,null,0,null,0]
[null,null,null,null,null,null,null,null,null,null,null,null,null,null,null,null,null,null,null,0,null,0]
[null,null,null,null,null,null,null,null,null,null,null,null,null,null,null,null,null,null,null,0,null,0]
[null,null,null,null,null,null,null,null,null,null,null,null,null,null,null,null,null,null,null,0,null,0]
[null,null,null,null,null,null,null,null,null,null,null,null,null,null,null,null,null,null,null,0,null,0]
[null,null,null,null,null,null,null,null,null,null,null,null,null,null,null,null,null,null,null,0,null,0]
[null,null,null,null,null,null,null,null,null,null,null,null,null,null,null,null,null,null,null,0,null,0]
[null,null,null,null,null,null,null,null,null,null,null,null,null,null,null,null,null,null,null,0,null,0]
[null,null,null,null,null,null,null,null,null,null,null,null,null,null,null,null,null,null,null,0,null,0]
[null,null,null,null,null,null,null,null,null,null,null,null,null,null,null,null,null,null,null,0,null,0]
[null,null,null,null,null,null,null,null,null,null,null,null,null,null,null,null,null,null,null,0,null,0]
[null,null,null,null,null,null,null,null,null,null,null,null,null,null,null,null,null,null,null,0,null,0]
[null,null,null,null,null,null,null,null,null,null,null,null,null,null,null,null,null,null,null,0,null,0]
[null,null,null,null,null,null,null,null,null,null,null,null,null,null,null,null,null,null,null,0,null,0]
[null,null,null,null,null,null,null,null,null,null,null,null,null,null,null,null,null,null,null,0,null,0]
[null,null,null,null,null,null,null,null,null,null,null,null,null,null,null,null,null,null,null,0,null,0]
[null,null,null,null,null,null,null,null,null,null,null,null,null,null,null,null,null,null,null,0,null,0]
[null,null,null,null,null,null,null,null,null,null,null,null,null,null,null,null,null,null,null,0,null,0]
[null,null,null,null,null,null,null,null,null,null,null,null,null,null,null,null,null,null,null,0,null,0]
[null,null,null,null,null,null,null,null,null,null,null,null,null,null,null,null,null,null,null,0,null,0]
[null,null,null,null,null,null,null,null,null,null,null,null,null,null,null,null,null,null,null,0,null,0]
[null,null,null,null,null,null,null,null,null,null,null,null,null,null,null,null,null,null,null,0,null,0]
[null,null,null,null,null,null,null,null,null,null,null,null,null,null,null,null,null,null,null,0,null,0]
[null,null,null,null,null,null,null,null,null,null,null,null,null,null,null,null,null,null,null,0,null,0]
[null,null,null,null,null,null,null,null,null,null,null,null,null,null,null,null,null,null,null,{"$f":"ROUND(E388,2)*S388/100","v":0},null,{"$f":"ROUND(E388,2)*U388/100","v":0}]
[null,null,null,null,null,null,null,null,null,null,null,null,null,null,null,null,null,null,null,0,null,0]
[null,null,null,null,null,null,null,null,null,null,null,null,null,null,null,null,null,null,null,0,null,0]
[null,null,null,null,null,null,null,null,null,null,null,null,null,null,null,null,null,null,null,0,null,0]
[null,null,null,null,null,null,null,null,null,null,null,null,null,null,null,null,null,null,null,0,null,0]
[null,null,null,null,null,null,null,null,null,null,null,null,null,null,null,null,null,null,null,0,null,0]
[null,null,null,null,null,null,null,null,null,null,null,null,null,null,null,null,null,null,null,0,null,0]
[null,null,null,null,null,null,null,null,null,null,null,null,null,null,null,null,null,null,null,0,null,0]
[null,null,null,null,null,null,null,null,null,null,null,null,null,null,null,null,null,null,null,0,null,0]
[null,null,null,null,null,null,null,null,null,null,null,null,null,null,null,null,null,null,null,0,null,0]
[null,null,null,null,null,null,null,null,null,null,null,null,null,null,null,null,null,null,null,0,null,0]
[null,null,null,null,null,null,null,null,null,null,null,null,null,null,null,null,null,null,null,0,null,0]
[null,null,null,null,null,null,null,null,null,null,null,null,null,null,null,null,null,null,null,0,null,0]
[null,null,null,null,null,null,null,null,null,null,null,null,null,null,null,null,null,null,null,0,null,0]
[null,null,null,null,null,null,null,null,null,null,null,null,null,null,null,null,null,null,null,0,null,0]
[null,null,null,null,null,null,null,null,null,null,null,null,null,null,null,null,null,null,null,0,null,0]
[null,null,null,null,null,null,null,null,null,null,null,null,null,null,null,null,null,null,null,0,null,0]
[null,null,null,null,null,null,null,null,null,null,null,null,null,null,null,null,null,null,null,0,null,0]
[null,null,null,null,null,null,null,null,null,null,null,null,null,null,null,null,null,null,null,0,null,0]
[null,null,null,null,null,null,null,null,null,null,null,null,null,null,null,null,null,null,null,0,null,0]
[null,null,null,null,null,null,null,null,null,null,null,null,null,null,null,null,null,null,null,0,null,0]
[null,null,null,null,null,null,null,null,null,null,null,null,null,null,null,null,null,null,null,0,null,0]
[null,null,null,null,null,null,null,null,null,null,null,null,null,null,null,null,null,null,null,0,null,0]
[null,null,null,null,null,null,null,null,null,null,null,null,null,null,null,null,null,null,null,0,null,0]
[null,null,null,null,null,null,null,null,null,null,null,null,null,null,null,null,null,null,null,0,null,0]
[null,null,null,null,null,null,null,null,null,null,null,null,null,null,null,null,null,null,null,0,null,0]
[null,null,null,null,null,null,null,null,null,null,null,null,null,null,null,null,null,null,null,0,null,0]
[null,null,null,null,null,null,null,null,null,null,null,null,null,null,null,null,null,null,null,0,null,0]
[null,null,null,null,null,null,null,null,null,null,null,null,null,null,null,null,null,null,null,0,null,0]
[null,null,null,null,null,null,null,null,null,null,null,null,null,null,null,null,null,null,null,0,null,0]
[null,null,null,null,null,null,null,null,null,null,null,null,null,null,null,null,null,null,null,0,null,0]
[null,null,null,null,null,null,null,null,null,null,null,null,null,null,null,null,null,null,null,0,null,0]
[null,null,null,null,null,null,null,null,null,null,null,null,null,null,null,null,null,null,null,0,null,0]
[null,null,null,null,null,null,null,null,null,null,null,null,null,null,null,null,null,null,null,0,null,0]
[null,null,null,null,null,null,null,null,null,null,null,null,null,null,null,null,null,null,null,0,null,0]
[null,null,null,null,null,null,null,null,null,null,null,null,null,null,null,null,null,null,null,0,null,0]
[null,null,null,null,null,null,null,null,null,null,null,null,null,null,null,null,null,null,null,0,null,0]
[null,null,null,null,null,null,null,null,null,null,null,null,null,null,null,null,null,null,null,0,null,0]
[null,null,null,null,null,null,null,null,null,null,null,null,null,null,null,null,null,null,null,0,null,0]
[null,null,null,null,null,null,null,null,null,null,null,null,null,null,null,null,null,null,null,0,null,0]
[null,null,null,null,null,null,null,null,null,null,null,null,null,null,null,null,null,null,null,0,null,0]
[null,null,null,null,null,null,null,null,null,null,null,null,null,null,null,null,null,null,null,0,null,0]
[null,null,null,null,null,null,null,null,null,null,null,null,null,null,null,null,null,null,null,0,null,0]
[null,null,null,null,null,null,null,null,null,null,null,null,null,null,null,null,null,null,null,0,null,0]
[null,null,null,null,null,null,null,null,null,null,null,null,null,null,null,null,null,null,null,0,null,0]
[null,null,null,null,null,null,null,null,null,null,null,null,null,null,null,null,null,null,null,0,null,0]
[null,null,null,null,null,null,null,null,null,null,null,null,null,null,null,null,null,null,null,0,null,0]
[null,null,null,null,null,null,null,null,null,null,null,null,null,null,null,null,null,null,null,0,null,0]
[null,null,null,null,null,null,null,null,null,null,null,null,null,null,null,null,null,null,null,0,null,0]
[null,null,null,null,null,null,null,null,null,null,null,null,null,null,null,null,null,null,null,0,null,0]
[null,null,null,null,null,null,null,null,null,null,null,null,null,null,null,null,null,null,null,0,null,0]
[null,null,null,null,null,null,null,null,null,null,null,null,null,null,null,null,null,null,null,0,null,0]
[null,null,null,null,null,null,null,null,null,null,null,null,null,null,null,null,null,null,null,0,null,0]
[null,null,null,null,null,null,null,null,null,null,null,null,null,null,null,null,null,null,null,0,null,0]
[null,null,null,null,null,null,null,null,null,null,null,null,null,null,null,null,null,null,null,0,null,0]
[null,null,null,null,null,null,null,null,null,null,null,null,null,null,null,null,null,null,null,0,null,0]
[null,null,null,null,null,null,null,null,null,null,null,null,null,null,null,null,null,null,null,0,null,0]
[null,null,null,null,null,null,null,null,null,null,null,null,null,null,null,null,null,null,null,0,null,0]
[null,null,null,null,null,null,null,null,null,null,null,null,null,null,null,null,null,null,null,0,null,0]
[null,null,null,null,null,null,null,null,null,null,null,null,null,null,null,null,null,null,null,0,null,0]
[null,null,null,null,null,null,null,null,null,null,null,null,null,null,null,null,null,null,null,0,null,0]
[null,null,null,null,null,null,null,null,null,null,null,null,null,null,null,null,null,null,null,0,null,0]
[null,null,null,null,null,null,null,null,null,null,null,null,null,null,null,null,null,null,null,0,null,0]
[null,null,null,null,null,null,null,null,null,null,null,null,null,null,null,null,null,null,null,0,null,0]
[null,null,null,null,null,null,null,null,null,null,null,null,null,null,null,null,null,null,null,{"$f":"ROUND(E452,2)*S452/100","v":0},null,{"$f":"ROUND(E452,2)*U452/100","v":0}]
[null,null,null,null,null,null,null,null,null,null,null,null,null,null,null,null,null,null,null,0,null,0]
[null,null,null,null,null,null,null,null,null,null,null,null,null,null,null,null,null,null,null,0,null,0]
[null,null,null,null,null,null,null,null,null,null,null,null,null,null,null,null,null,null,null,0,null,0]
[null,null,null,null,null,null,null,null,null,null,null,null,null,null,null,null,null,null,null,0,null,0]
[null,null,null,null,null,null,null,null,null,null,null,null,null,null,null,null,null,null,null,0,null,0]
[null,null,null,null,null,null,null,null,null,null,null,null,null,null,null,null,null,null,null,0,null,0]
[null,null,null,null,null,null,null,null,null,null,null,null,null,null,null,null,null,null,null,0,null,0]
[null,null,null,null,null,null,null,null,null,null,null,null,null,null,null,null,null,null,null,0,null,0]
[null,null,null,null,null,null,null,null,null,null,null,null,null,null,null,null,null,null,null,0,null,0]
[null,null,null,null,null,null,null,null,null,null,null,null,null,null,null,null,null,null,null,0,null,0]
[null,null,null,null,null,null,null,null,null,null,null,null,null,null,null,null,null,null,null,0,null,0]
[null,null,null,null,null,null,null,null,null,null,null,null,null,null,null,null,null,null,null,0,null,0]
[null,null,null,null,null,null,null,null,null,null,null,null,null,null,null,null,null,null,null,0,null,0]
[null,null,null,null,null,null,null,null,null,null,null,null,null,null,null,null,null,null,null,0,null,0]
[null,null,null,null,null,null,null,null,null,null,null,null,null,null,null,null,null,null,null,0,null,0]
[null,null,null,null,null,null,null,null,null,null,null,null,null,null,null,null,null,null,null,0,null,0]
[null,null,null,null,null,null,null,null,null,null,null,null,null,null,null,null,null,null,null,0,null,0]
[null,null,null,null,null,null,null,null,null,null,null,null,null,null,null,null,null,null,null,0,null,0]
[null,null,null,null,null,null,null,null,null,null,null,null,null,null,null,null,null,null,null,0,null,0]
[null,null,null,null,null,null,null,null,null,null,null,null,null,null,null,null,null,null,null,0,null,0]
[null,null,null,null,null,null,null,null,null,null,null,null,null,null,null,null,null,null,null,0,null,0]
[null,null,null,null,null,null,null,null,null,null,null,null,null,null,null,null,null,null,null,0,null,0]
[null,null,null,null,null,null,null,null,null,null,null,null,null,null,null,null,null,null,null,0,null,0]
[null,null,null,null,null,null,null,null,null,null,null,null,null,null,null,null,null,null,null,0,null,0]
[null,null,null,null,null,null,null,null,null,null,null,null,null,null,null,null,null,null,null,0,null,0]
[null,null,null,null,null,null,null,null,null,null,null,null,null,null,null,null,null,null,null,0,null,0]
[null,null,null,null,null,null,null,null,null,null,null,null,null,null,null,null,null,null,null,0,null,0]
[null,null,null,null,null,null,null,null,null,null,null,null,null,null,null,null,null,null,null,0,null,0]
[null,null,null,null,null,null,null,null,null,null,null,null,null,null,null,null,null,null,null,0,null,0]
[null,null,null,null,null,null,null,null,null,null,null,null,null,null,null,null,null,null,null,0,null,0]
[null,null,null,null,null,null,null,null,null,null,null,null,null,null,null,null,null,null,null,0,null,0]
[null,null,null,null,null,null,null,null,null,null,null,null,null,null,null,null,null,null,null,0,null,0]
[null,null,null,null,null,null,null,null,null,null,null,null,null,null,null,null,null,null,null,0,null,0]
[null,null,null,null,null,null,null,null,null,null,null,null,null,null,null,null,null,null,null,0,null,0]
[null,null,null,null,null,null,null,null,null,null,null,null,null,null,null,null,null,null,null,0,null,0]
[null,null,null,null,null,null,null,null,null,null,null,null,null,null,null,null,null,null,null,0,null,0]
[null,null,null,null,null,null,null,null,null,null,null,null,null,null,null,null,null,null,null,0,null,0]
[null,null,null,null,null,null,null,null,null,null,null,null,null,null,null,null,null,null,null,0,null,0]
[null,null,null,null,null,null,null,null,null,null,null,null,null,null,null,null,null,null,null,0,null,0]
[null,null,null,null,null,null,null,null,null,null,null,null,null,null,null,null,null,null,null,0,null,0]
[null,null,null,null,null,null,null,null,null,null,null,null,null,null,null,null,null,null,null,0,null,0]
[null,null,null,null,null,null,null,null,null,null,null,null,null,null,null,null,null,null,null,0,null,0]
[null,null,null,null,null,null,null,null,null,null,null,null,null,null,null,null,null,null,null,0,null,0]
[null,null,null,null,null,null,null,null,null,null,null,null,null,null,null,null,null,null,null,0,null,0]
[null,null,null,null,null,null,null,null,null,null,null,null,null,null,null,null,null,null,null,0,null,0]
[null,null,null,null,null,null,null,null,null,null,null,null,null,null,null,null,null,null,null,0,null,0]
[null,null,null,null,null,null,null,null,null,null,null,null,null,null,null,null,null,null,null,0,null,0]
[null,null,null,null,null,null,null,null,null,null,null,null,null,null,null,null,null,null,null,0,null,0]
[null,null,null,null,null,null,null,null,null,null,null,null,null,null,null,null,null,null,null,0,null,0]
[null,null,null,null,null,null,null,null,null,null,null,null,null,null,null,null,null,null,null,0,null,0]
[null,null,null,null,null,null,null,null,null,null,null,null,null,null,null,null,null,null,null,0,null,0]
[null,null,null,null,null,null,null,null,null,null,null,null,null,null,null,null,null,null,null,0,null,0]
[null,null,null,null,null,null,null,null,null,null,null,null,null,null,null,null,null,null,null,0,null,0]
[null,null,null,null,null,null,null,null,null,null,null,null,null,null,null,null,null,null,null,0,null,0]
[null,null,null,null,null,null,null,null,null,null,null,null,null,null,null,null,null,null,null,0,null,0]
[null,null,null,null,null,null,null,null,null,null,null,null,null,null,null,null,null,null,null,0,null,0]
[null,null,null,null,null,null,null,null,null,null,null,null,null,null,null,null,null,null,null,0,null,0]
[null,null,null,null,null,null,null,null,null,null,null,null,null,null,null,null,null,null,null,0,null,0]
[null,null,null,null,null,null,null,null,null,null,null,null,null,null,null,null,null,null,null,0,null,0]
[null,null,null,null,null,null,null,null,null,null,null,null,null,null,null,null,null,null,null,0,null,0]
[null,null,null,null,null,null,null,null,null,null,null,null,null,null,null,null,null,null,null,0,null,0]
[null,null,null,null,null,null,null,null,null,null,null,null,null,null,null,null,null,null,null,0,null,0]
[null,null,null,null,null,null,null,null,null,null,null,null,null,null,null,null,null,null,null,0,null,0]
[null,null,null,null,null,null,null,null,null,null,null,null,null,null,null,null,null,null,null,{"$f":"ROUND(E516,2)*S516/100","v":0},null,{"$f":"ROUND(E516,2)*U516/100","v":0}]
[null,null,null,null,null,null,null,null,null,null,null,null,null,null,null,null,null,null,null,0,null,0]
[null,null,null,null,null,null,null,null,null,null,null,null,null,null,null,null,null,null,null,0,null,0]
[null,null,null,null,null,null,null,null,null,null,null,null,null,null,null,null,null,null,null,0,null,0]
[null,null,null,null,null,null,null,null,null,null,null,null,null,null,null,null,null,null,null,0,null,0]
[null,null,null,null,null,null,null,null,null,null,null,null,null,null,null,null,null,null,null,0,null,0]
[null,null,null,null,null,null,null,null,null,null,null,null,null,null,null,null,null,null,null,0,null,0]
[null,null,null,null,null,null,null,null,null,null,null,null,null,null,null,null,null,null,null,0,null,0]
[null,null,null,null,null,null,null,null,null,null,null,null,null,null,null,null,null,null,null,0,null,0]
[null,null,null,null,null,null,null,null,null,null,null,null,null,null,null,null,null,null,null,0,null,0]
[null,null,null,null,null,null,null,null,null,null,null,null,null,null,null,null,null,null,null,0,null,0]
[null,null,null,null,null,null,null,null,null,null,null,null,null,null,null,null,null,null,null,0,null,0]
[null,null,null,null,null,null,null,null,null,null,null,null,null,null,null,null,null,null,null,0,null,0]
[null,null,null,null,null,null,null,null,null,null,null,null,null,null,null,null,null,null,null,0,null,0]
[null,null,null,null,null,null,null,null,null,null,null,null,null,null,null,null,null,null,null,0,null,0]
[null,null,null,null,null,null,null,null,null,null,null,null,null,null,null,null,null,null,null,0,null,0]
[null,null,null,null,null,null,null,null,null,null,null,null,null,null,null,null,null,null,null,0,null,0]
[null,null,null,null,null,null,null,null,null,null,null,null,null,null,null,null,null,null,null,0,null,0]
[null,null,null,null,null,null,null,null,null,null,null,null,null,null,null,null,null,null,null,0,null,0]
[null,null,null,null,null,null,null,null,null,null,null,null,null,null,null,null,null,null,null,0,null,0]
[null,null,null,null,null,null,null,null,null,null,null,null,null,null,null,null,null,null,null,0,null,0]
[null,null,null,null,null,null,null,null,null,null,null,null,null,null,null,null,null,null,null,0,null,0]
[null,null,null,null,null,null,null,null,null,null,null,null,null,null,null,null,null,null,null,0,null,0]
[null,null,null,null,null,null,null,null,null,null,null,null,null,null,null,null,null,null,null,0,null,0]
[null,null,null,null,null,null,null,null,null,null,null,null,null,null,null,null,null,null,null,0,null,0]
[null,null,null,null,null,null,null,null,null,null,null,null,null,null,null,null,null,null,null,0,null,0]
[null,null,null,null,null,null,null,null,null,null,null,null,null,null,null,null,null,null,null,0,null,0]
[null,null,null,null,null,null,null,null,null,null,null,null,null,null,null,null,null,null,null,0,null,0]
[null,null,null,null,null,null,null,null,null,null,null,null,null,null,null,null,null,null,null,0,null,0]
[null,null,null,null,null,null,null,null,null,null,null,null,null,null,null,null,null,null,null,0,null,0]
[null,null,null,null,null,null,null,null,null,null,null,null,null,null,null,null,null,null,null,0,null,0]
[null,null,null,null,null,null,null,null,null,null,null,null,null,null,null,null,null,null,null,0,null,0]
[null,null,null,null,null,null,null,null,null,null,null,null,null,null,null,null,null,null,null,0,null,0]
[null,null,null,null,null,null,null,null,null,null,null,null,null,null,null,null,null,null,null,0,null,0]
[null,null,null,null,null,null,null,null,null,null,null,null,null,null,null,null,null,null,null,0,null,0]

{"sheet":"Annexure 1","index":2,"n_rows":726,"n_cols":3,"rows_kept":726,"cut":false,"hidden":false,"merged":[]}
[]
[null,"SAC","Service Description"]
[null,9954,"Construction services"]
[null,99541,"Construction services of buildings"]
[null,995411,"Construction services of single dwelling or multi dwelling or multi-storied residential buildings"]
[null,995412,"Construction services of other residential buildings such as old age homes, homeless shelters, hostels etc"]
[null,995413,"Construction services of industrial buildings such as buildings used for production activities (used for assembly line activities), workshops, storage buildings and other similar industrial buildings"]
[null,995414,"Construction services of commercial buildings such as office buildings, exhibition & marriage halls, malls, hotels, restaurants, airports, rail or road terminals, parking garages, petrol and service stations, theatres and other similar buildings."]
[null,995415,"Construction services of other non-residential buildings such as educational institutions, hospitals, clinics including vertinary clinics, religious establishments, courts, prisons, museums and other similar buildings"]
[null,995416,"Construction Services of other buildings n.e.c"]
[null,995419,"Services involving Repair, alterations, additions, replacements, renovation, maintenance or remodelling of the buildings covered above."]
[null,99542,"General construction services of civil engineering works"]
[null,995421,"General construction services of highways, streets, roads, railways and airfield runways, bridges and tunnels"]
[null,995422,"General construction services of harbours, waterways, dams, water mains and lines, irrigation and other waterworks"]
[null,995423,"General construction services of long-distance underground/overland/submarine pipelines, communication and electric power lines (cables); pumping stations and related works; transformer stations and related works."]
[null,"995424","General construction services of local water & sewage pipelines, electricity and communication cables & related works"]
[null,995425,"General construction services of mines and industrial plants"]
[null,995426,"General Construction services of Power Plants and its related infrastructure"]
[null,995427,"General construction services of outdoor sport and recreation facilities"]
[null,995428,"General construction services of other civil engineering works n.e.c."]
[null,"995429","Services involving Repair, alterations, additions, replacements, renovation, maintenance or remodelling of the constructions covered above."]
[null,99543,"Site preparation services"]
[null,995431,"Demolition services"]
[null,995432,"Site formation and clearance services including preparation services to make sites ready for subsequent construction work, test drilling & boring & core extraction, digging of trenches."]
[null,995433,"Excavating and earthmoving services"]
[null,995434,"Water well drilling services and septic system installation services"]
[null,995435,"Other site preparation services n.e.c"]
[null,995439,"Services involving Repair, alterations, additions, replacements, maintenance of the constructions covered above."]
[null,99544,"Assembly and erection of prefabricated constructions"]
[null,995441,"Installation, assembly and erection services of prefabricated buildings"]
[null,995442,"Installation, assembly and erection services of other prefabricated structures and constructions"]
[null,995443,"Installation services of all types of street furniture (e.g., bus shelters, benches, telephone booths, public toilets, etc.)"]
[null,995449,"Services involving Repair, alterations, additions, replacements, maintenance of the constructions covered above."]
[null,99545,"Special trade construction services"]
[null,995451,"Pile driving and foundation services"]
[null,995452,"Building framing & Roof Framing services"]
[null,995453,"Roofing and waterproofing services"]
[null,995454,"Concrete services"]
[null,995455,"Structural steel erection services"]
[null,995456,"Masonry services"]
[null,995457,"Scaffolding services"]
[null,995458,"Other special trade construction services n.e.c."]
[null,995459,"Services involving Repair, alterations, additions, replacements, maintenance of the constructions covered above."]
[null,99546,"Installation services"]
[null,995461,"Electrical installation services including Electrical wiring & fitting services, fire alarm installation services, burglar alarm system installation services."]
[null,995462,"Water plumbing and drain laying services"]
[null,995463,"Heating, ventilation and air conditioning equipment installation services"]
[null,995464,"Gas fitting installation services"]
[null,995465,"Insulation services"]
[null,995466,"Lift and escalator installation services"]
[null,995468,"Other installation services n.e.c."]
[null,995469,"Services involving Repair, alterations, additions, replacements, maintenance of the installations covered above."]
[null,99547,"Building completion and finishing services"]
[null,995471,"Glazing services"]
[null,995472,"Plastering services"]
[null,995473,"Painting services"]
[null,995474,"Floor and wall tiling services"]
[null,995475,"Other floor laying, wall covering and wall papering services"]
[null,995476,"Joinery and carpentry services"]
[null,995477,"Fencing and railing services"]
[null,995478,"Other building completion and finishing services n.e.c."]
[null,995479,"Services involving Repair, alterations, additions, replacements, maintenance of the completion/finishing works covered above."]
[null,9961,"Services in wholesale trade"]
[null,996111,"Services provided for a fee/commission or contract basis on wholesale trade"]
[null,9962,"Services in retail trade"]
[null,996211,"Services provided for a fee/commission or contract basis on retail trade"]
[null,9963,"Accommodation, food and beverage services"]
[null,99631,"Accommodation services"]
[null,996311,"Room or unit accommodation services provided by Hotels, INN, Guest House, Club etc"]
[null,996312,"Camp site services"]
[null,996313,"Recreational and vacation camp services"]
[null,99632,"Other accommodation services"]
[null,996321,"Room or unit accommodation services for students in student residences"]
[null,996322,"Room or unit accommodation services provided by Hostels, Camps, Paying Guest etc"]
[null,996329,"Other room or unit accommodation services n.e.c."]
[null,99633,"Food, edible preparations, alchoholic & non-alchocholic beverages serving services"]
[null,996331,"Services provided by Restaurants, Cafes and similar eating facilities including takeaway services, Room services and door delivery of food."]
[null,996332,"Services provided by Hotels, INN, Guest House, Club etc including Room services, takeaway services and door delivery of food."]
[null,996333,"Services provided in Canteen and other similar establishments"]
[null,996334,"Catering Services in Exhibition halls, Events, Marriage Halls and other outdoor/indoor functions."]
[null,996335,"Catering services in trains, flights etc."]
[null,996336,"Preparation and/or supply services of food, edible preparations, alchoholic & non-alchocholic beverages to airlines and other transportation operators"]
[null,996337,"Other contract food services"]
[null,996339,"Other food, edible preparations, alchoholic & non-alchocholic beverages serving services n.e.c."]
[null,9964,"Passenger transport services"]
[null,99641,"Local transport and sightseeing transportation services of passengers"]
[null,996411,"Local land transport services of passengers by railways, metro, monorail, bus, tramway, autos, three wheelers, scooters and other motor vehicles"]
[null,996412,"Taxi services including radio taxi & other similar services; "]
[null,996413,"Non-scheduled local bus and coach charter services"]
[null,996414,"Other land transportation services of passengers."]
[null,996415,"Local water transport services of passengers by ferries, cruises etc"]
[null,996416,"Sightseeing transportation services by rail, land, water & air"]
[null,996419,"Other local transportation services of passengers n.e.c."]
[null,99642,"Long-distance transport services of passengers"]
[null,996421,"Long-distance transport services of passengers through Rail network by Railways, Metro etc"]
[null,996422,"Long-distance transport services of passengers through Road by Bus, Car, non-scheduled long distance bus and coach services, stage carriage etc"]
[null,996423,"Taxi services including radio taxi & other similar services"]
[null,996424,"Coastal and transoceanic (overseas) water transport services of passengers by Ferries, Cruise Ships etc"]
[null,996425,"Domestic/International Scheduled Air transport services of passengers"]
[null,996426,"Domestic/international non-scheduled air transport services of Passengers"]
[null,996427,"Space transport services of passengers"]
[null,996429,"Other long-distance transportation services of passengers n.e.c."]
[null,9965,"Goods transport services"]
[null,99651,"Land transport services of Goods"]
[null,996511,"Road transport services of Goods including letters, parcels, live animals, household & office furniture, containers etc by refrigerator vehicles, trucks, trailers, man or animal drawn vehicles or any other vehicles."]
[null,996512,"Railway transport services of Goods including letters, parcels, live animals, household & office furniture, intermodal containers, bulk cargo etc"]
[null,996513,"Transport services of petroleum & natural gas, water, sewerage and other goods via pipeline"]
[null,99652,"Water transport services of goods"]
[null,996521,"Coastal and transoceanic (overseas) water transport services of goods by refrigerator vessels, tankers, bulk cargo vessels, container ships etc"]
[null,996522,"Inland water transport services of goods by refrigerator vessels, tankers and other vessels."]
[null,99653,"Air and space transport services of goods"]
[null,996531,"Air transport services of letters & parcels and other goods"]
[null,996532,"Space transport services of freight"]
[null,9966,"Rental services of transport vehicles with or without operators"]
[null,99660,"Rental services of transport vehicles with or without operators"]
[null,996601,"Rental services of road vehicles including buses, coaches, cars, trucks and other motor vehicles, with or without operator"]
[null,996602,"Rental services of water vessels including passenger vessels, freight vessels etc with or without operator"]
[null,996603,"Rental services of aircraft including passenger aircrafts, freight aircrafts etc with or without operator"]
[null,9967,"Supporting services in transport"]
[null,99671,"Cargo handling services"]
[null,996711,"Container handling services"]
[null,996712,"Customs House Agent services"]
[null,996713,"Clearing and forwarding services"]
[null,996719,"Other cargo and baggage handling services"]
[null,99672,"Storage and warehousing services"]
[null,996721,"Refrigerated storage services"]
[null,996722,"Bulk liquid or gas storage services"]
[null,996729,"Other storage and warehousing services"]
[null,99673,"Supporting services for railway transport"]
[null,996731,"Railway pushing or towing services"]
[null,996739,"Other supporting services for railway transport n.e.c."]
[null,99674,"Supporting services for road transport"]
[null,996741,"Bus station services"]
[null,996742,"Operation services of National Highways, State Highways, Expressways, Roads & streets; bridges and tunnel operation services."]
[null,996743,"Parking lot services"]
[null,996744,"Towing services for commercial and private vehicles"]
[null,996749,"Other supporting services for road transport n.e.c."]
[null,99675,"Supporting services for water transport (coastal, transoceanic and inland waterways)"]
[null,996751,"Port and waterway operation services (excl. cargo handling) such as operation services of ports, docks, light houses, light ships etc"]
[null,996752,"Pilotage and berthing services"]
[null,996753,"Vessel salvage and refloating services"]
[null,996759,"Other supporting services for water transport n.e.c."]
[null,99676,"Supporting services for air or space transport"]
[null,996761,"Airport operation services (excl. cargo handling)"]
[null,996762,"Air traffic control services"]
[null,996763,"Other supporting services for air transport"]
[null,996764,"Supporting services for space transport"]
[null,99679,"Other supporting transport services"]
[null,996791,"Goods transport agency services for road transport"]
[null,996792,"Goods transport agency services for other modes of transport"]
[null,996793,"Other goods transport services "]
[null,996799,"Other supporting transport services n.e.c"]
[null,9968,"Postal and courier services"]
[null,99681,"Postal and courier services"]
[null,996811,"Postal services including post office counter services, mail box rental services."]
[null,996812,"Courier services"]
[null,996813,"Local delivery services"]
[null,996819,"Other Delivery Services n.e.c"]
[null,9969,"Electricity, gas, water and other distribution services"]
[null,99691,"Electricity and gas distribution services"]
[null,996911,"Electricity transmission services"]
[null,996912,"Electricity distribution services"]
[null,996913,"Gas distribution services"]
[null,99692,"Water distribution and other services"]
[null,996921,"Water distribution services"]
[null,996922,"Services involving distribution of steam, hot water and air conditioning supply etc."]
[null,9971,"Financial and related services"]
[null,99711,"Financial services (except investment banking, insurance services and pension services)"]
[null,997111,"Central banking services"]
[null,997112,"Deposit services"]
[null,997113,"Credit-granting services including stand-by commitment, guarantees & securities"]
[null,997114,"Financial leasing services"]
[null,997119,"Other financial services (except investment banking, insurance services and pension services)"]
[null,99712,"Investment banking services "]
[null,997120,"Investment banking services "]
[null,99713,"Insurance and pension services (excluding reinsurance services)"]
[null,997131,"pension services"]
[null,997132,"Life insurance services  (excluding reinsurance services)"]
[null,997133,"Accident and health insurance services"]
[null,997134,"Motor vehicle insurance services"]
[null,997135,"Marine, aviation, and other transport insurance services"]
[null,997136,"Freight insurance services & Travel insurance services"]
[null,997137,"Other property insurance services"]
[null,997139,"Other non-life insurance services (excluding reinsurance services)"]
[null,99714,"Reinsurance services"]
[null,997141,"Life reinsurance services"]
[null,997142,"Accident and health reinsurance services"]
[null,997143,"Motor vehicle reinsurance services"]
[null,997144,"Marine, aviation and other transport reinsurance ser"]
[null,997145,"services"]
[null,997146,"Freight reinsurance services"]
[null,997149,"Other non-life reinsurance services"]
[null,99715,"Services auxiliary to financial services (other than to insurance and pensions)"]
[null,997151,"Services related to investment banking such as mergers & acquisition services, corporate finance & venture capital services"]
[null,997152,"Brokerage and related securities and commodities services including commodity exchange services"]
[null,997153,"Portfolio management services except pension funds"]
[null,997154,"Trust and custody services"]
[null,997155,"Services related to the administration of financial markets"]
[null,997156,"Financial consultancy services"]
[null,997157,"Foreign exchange services"]
[null,997158,"Financial transactions processing and clearing house services"]
[null,997159,"Other services auxiliary to financial services"]
[null,99716,"Services auxillary to insurance and pensions"]
[null,997161,"Insurance brokerage and agency services"]
[null,997162,"Insurance claims adjustment services"]
[null,997163,"Actuarial services"]
[null,997164,"Pension fund management services"]
[null,997169,"Other services auxiliary to insurance and pensions "]
[null,99717,"Services of holding financial assets"]
[null,997171,"Services of holding equity of subsidiary companies"]
[null,997172,"Services of holding securities and other assets of trusts and funds and similar financial entities"]
[null,9972,"Real estate services"]
[null,99721,"Real estate services involving owned or leased property"]
[null,997211,"Rental or leasing services involving own or leased residential property"]
[null,997212,"Rental or leasing services involving own or leased non-residential property"]
[null,997213,"Trade services of buildings"]
[null,997214,"Trade services of time-share properties"]
[null,997215,"Trade services of vacant and subdivided land"]
[null,99722,"Real estate services on a fee/commission basis or contract basis"]
[null,997221,"Property management services on a fee/commission basis or contract basis"]
[null,997222,"Building sales on a fee/commission basis or contract basis"]
[null,997223,"Land sales on a fee/commission basis or contract basis"]
[null,997224,"Real estate appraisal services on a fee/commission basis or contract basis"]
[null,9973,"Leasing or rental services with or without operator"]
[null,99731,"Leasing or rental services concerning machinery and equipment with or without operator"]
[null,997311,"Leasing or rental services concerning transport equipments including containers, with or without operator"]
[null,997313,"Leasing or rental services concerning construction machinery and equipment with or without operator"]
[null,997314,"Leasing or rental services concerning office machinery and equipment (except computers) with or without operator"]
[null,997315,"Leasing or rental services concerning computers with or without operators"]
[null,997316,"Leasing or rental services concerning telecommunications equipment with or without operator"]
[null,997319,"Leasing or rental services concerning other machinery and equipments with or without operator"]
[null,99732,"Leasing or rental services concerning other goods"]
[null,997321,"Leasing or rental services concerning televisions, radios, video cassette recorders, projectors, audio systems and related equipment and accessories (Home entertainment equipment )"]
[null,997322,"Leasing or rental services concerning video tapes and disks (Home entertainment equipment )"]
[null,997323,"Leasing or rental services concerning furniture and other household appliances"]
[null,997324,"Leasing or rental services concerning pleasure and leisure equipment."]
[null,997325,"Leasing or rental services concerning household linen."]
[null,997326,"Leasing or rental services concerning textiles, clothing and footwear."]
[null,997327,"Leasing or rental services concerning do-it-yourself machinery and equipment"]
[null,997329,"Leasing or rental services concerning other goods"]
[null,99733,"Licensing services for the right to use intellectual property and similar products"]
[null,997331,"Licensing services for the right to use computer software and databases."]
[null,997332,"Licensing services for the right to broadcast and show original films, sound recordings, radio and television programme etc."]
[null,997333,"Licensing services for the right to reproduce original art works"]
[null,997334,"Licensing services for the right to reprint and copy manuscripts, books, journals and periodicals."]
[null,997335,"Licensing services for the right to use R&D products"]
[null,997336,"Licensing services for the right to use trademarks and franchises"]
[null,997337,"Licensing services for the right to use minerals including its exploration and evaluation"]
[null,997338,"Licensing services for right to use other natural resources including telecommunication spectrum"]
[null,997339,"Licensing services for the right to use other intellectual property products and other rescources n.e.c"]
[null,9981,"Research and development services"]
[null,99811,"Research and experimental development services in natural sciences and engineering."]
[null,998111,"Research and experimental development services in natural sciences"]
[null,998112,"Research and experimental development services in engineering and technology"]
[null,998113,"Research and experimental development services in medical sciences and pharmacy."]
[null,998114,"Research and experimental development services in agricultural sciences."]
[null,99812,"Research and experimental development services in social sciences and humanities."]
[null,998121,"Research and experimental development services in social sciences."]
[null,998122,"Research and experimental development services in humanities"]
[null,99813,"Interdisciplinary research services."]
[null,99814,"Research and development originals"]
[null,998141,"Research and development originals in pharmaceuticals"]
[null,998142,"Research and development originals in agriculture"]
[null,998143,"Research and development originals in biotechnology"]
[null,998144,"Research and development originals in computer related sciences"]
[null,998145,"Research and development originals in other fields n.e.c."]
[null,9982,"Legal and accounting services"]
[null,99821,"Legal services"]
[null,998211,"Legal advisory and representation services concerning criminal law."]
[null,998212,"Legal advisory and representation services concerning other fields of law."]
[null,998213,"Legal documentation and certification services concerning patents, copyrights and other intellectual property rights."]
[null,998214,"Legal documentation and certification services concerning other documents."]
[null,998215,"Arbitration and conciliation services"]
[null,99822,"Accounting, auditing and bookkeeping services"]
[null,998221,"Financial auditing services"]
[null,998222,"Accounting and bookkeeping services"]
[null,998223,"Payroll services"]
[null,99823,"Tax consultancy and preparation services"]
[null,998231,"Corporate tax consulting and preparation services"]
[null,998232,"Individual tax preparation and planning services"]
[null,99824,"Insolvency and receivership services"]
[null,99831,"Management consulting and management services; information technology services."]
[null,998311,"Management consulting and management services including financial, strategic, human resources, marketing, operations and supply chain management."]
[null,998312,"Business consulting services including pubic relations services"]
[null,998313,"Information technology (IT) consulting and support services"]
[null,998314,"Information technology (IT) design and development services"]
[null,998315,"Hosting and information technology (IT) infrastructure provisioning services"]
[null,998316,"IT infrastructure and network management services"]
[null,998319,"Other information technology services n.e.c"]
[null,99832,"Architectural services, urban and land planning and landscape architectural services"]
[null,998321,"Architectural advisory services"]
[null,998322,"Architectural services for residential building projects"]
[null,998323,"Architectural services for non-residential building projects"]
[null,998324,"Historical restoration architectural services"]
[null,998325,"Urban planning services"]
[null,998326,"Rural land planning services"]
[null,998327,"Project site master planning services"]
[null,998328,"Landscape architectural services and advisory services"]
[null,99833,"Engineering services"]
[null,998331,"Engineering advisory services"]
[null,998332,"Engineering services for building projects"]
[null,998333,"Engineering services for industrial and manufacturing projects"]
[null,998334,"Engineering services for transportation projects"]
[null,998335,"Engineering services for power projects"]
[null,998336,"Engineering services for telecommunications and broadcasting projects"]
[null,998337,"Engineering services for waste management projects (hazardous and non-hazardous), for water, sewerage and drainage projects."]
[null,998338,"Engineering services for other projects n.e.c."]
[null,998339,"Project management services for construction projects"]
[null,99834,"Scientific and other technical services"]
[null,998341,"Geological and geophysical consulting services"]
[null,998342,"Subsurface surveying services"]
[null,998343,"Mineral exploration and evaluation"]
[null,998345,"Weather forecasting and meteorological services"]
[null,998346,"Technical testing and analysis services"]
[null,998347,"Certification of ships, aircraft, dams, etc."]
[null,998348,"Certification and authentication of works of art"]
[null,998349,"Other technical and scientific services n.e.c."]
[null,99835,"Veterinary services"]
[null,998351,"Veterinary services for pet animals"]
[null,998352,"Veterinary services for livestock"]
[null,998359,"Other veterinary services n.e.c."]
[null,99836,"Advertising services and provision of advertising space or time."]
[null,998361,"Advertising Services"]
[null,998362,"Purchase or sale of advertising space or time, on commission"]
[null,998363,"Sale of advertising space in print media (except on commission)"]
[null,998364,"Sale of TV and radio advertising time"]
[null,998365,"Sale of Internet advertising space"]
[null,998366,"Sale of other advertising space or time (except on commission)"]
[null,99837,"Market research and public opinion polling services"]
[null,998371,"Market research services"]
[null,998372,"Public opinion polling services"]
[null,99838,"Photography & Videography and their processing services"]
[null,998381,"Portrait photography services"]
[null,998382,"Advertising and related photography services"]
[null,998383,"Event photography and event videography services"]
[null,998384,"Specialty photography services"]
[null,998385,"Restoration and retouching services of photography"]
[null,998386,"Photographic & videographic processing services"]
[null,99839,"Other professional, technical and business services."]
[null,998391,"Specialty design services including interior design, fashion design, industrial design and other specialty design services"]
[null,998392,"Design originals"]
[null,998393,"Scientific and technical consulting services"]
[null,998394,"Original compilations of facts/information"]
[null,998395,"Translation and interpretation services"]
[null,998396,"Trademarks and franchises"]
[null,998399,"Other professional, technical and business services n.e.c."]
[null,9984,"Telecommunications, broadcasting and information supply Services"]
[null,99841,"Telephony and other telecommunications services"]
[null,998411,"Carrier services"]
[null,998412,"Fixed telephony services"]
[null,998413,"Mobile telecommunications services"]
[null,998414,"Private network services"]
[null,998415,"Data transmission services"]
[null,998419,"Other telecommunications services including Fax services, Telex services n.e.c."]
[null,99842,"Internet telecommunications services"]
[null,998421,"Internet backbone services"]
[null,998422,"Internet access services in wired and wireless mode."]
[null,998423,"Fax, telephony over the Internet"]
[null,998424,"Audio conferencing and video conferencing over the Internet"]
[null,998429,"Other Internet telecommunications services n.e.c."]
[null,99843,"On-line content services"]
[null,998431,"On-line text based information such as online books, newpapers, periodicals, directories etc"]
[null,998432,"On-line audio content"]
[null,998433,"On-line video content"]
[null,998434,"Software downloads"]
[null,998439,"Other on-line contents n.e.c."]
[null,99844,"News agency services"]
[null,998441,"News agency services to newspapers and periodicals"]
[null,998442,"Services of independent journalists and press photographers"]
[null,998443,"News agency services to audiovisual media"]
[null,99845,"Library and archive services"]
[null,998451,"Library services"]
[null,998452,"Operation services of public archives including digital archives"]
[null,998453,"Operation services of historical archives including digital archives"]
[null,99846,"Broadcasting, programming and programme distribution services"]
[null,998461,"Radio broadcast originals"]
[null,998462,"Television broadcast originals"]
[null,998463,"Radio channel programmes"]
[null,998464,"Television channel programmes"]
[null,998465,"Broadcasting services"]
[null,998466,"Home programme distribution services"]
[null,9985,"Support services"]
[null,99851,"Employment services including personnel search/referral service & labour supply service"]
[null,998511,"Executive/retained personnel search services"]
[null,998512,"Permanent placement services, other than executive search services"]
[null,998513,"Contract staffing services"]
[null,998514,"Temporary staffing services"]
[null,998515,"Long-term staffing (pay rolling) services"]
[null,998516,"Temporary staffing-to-permanent placement services"]
[null,998517,"Co-employment staffing services"]
[null,998519,"Other employment & labour supply services n.e.c"]
[null,99852,"Investigation and security services"]
[null,998521,"Investigation services"]
[null,998522,"Security consulting services"]
[null,998523,"Security systems services"]
[null,998524,"Armoured car services"]
[null,998525,"Guard services"]
[null,998526,"Training of guard dogs"]
[null,998527,"Polygraph services"]
[null,998528,"Fingerprinting services"]
[null,998529,"Other security services n.e.c."]
[null,99853,"Cleaning services"]
[null,998531,"Disinfecting and exterminating services"]
[null,998532,"Window cleaning services"]
[null,998533,"General cleaning services"]
[null,998534,"Specialized cleaning services for reservoirs and tanks"]
[null,998535,"Sterilization of objects or premises (operating rooms)"]
[null,998536,"Furnace and chimney cleaning services"]
[null,998537,"Exterior cleaning of buildings of all types"]
[null,998538,"Cleaning of transportation equipment"]
[null,998539,"Other cleaning services n.e.c."]
[null,99854,"Packaging services"]
[null,998541,"Parcel packing and gift wrapping"]
[null,998542,"Coin and currency packing services"]
[null,"998543","Coin and currency packing services"]
[null,998549,"Other packaging services n.e.c"]
[null,99855,"Travel arrangement, tour operator and related services"]
[null,998551,"Reservation services for transportation"]
[null,998552,"Reservation services for accommodation, cruises and package tours"]
[null,998553,"Reservation services for convention centres, congress centres and exhibition halls"]
[null,998554,"Reservation services for event tickets, cinema halls, entertainment and recreational services and other reservation services"]
[null,998555,"Tour operator services"]
[null,998556,"Tourist guide services"]
[null,998557,"Tourism promotion and visitor information services"]
[null,998559,"Other travel arrangement and related services n.e.c"]
[null,99859,"Other support services"]
[null,998591,"Credit reporting & rating services"]
[null,998592,"Collection agency services"]
[null,998593,"Telephone-based support services"]
[null,998594,"Combined office administrative services"]
[null,998595,"Specialized office support services such as duplicating services, mailing services, document preparation etc"]
[null,998596,"Events, Exhibitions, Conventions and trade shows organisation and assistance services"]
[null,998597,"Landscape care and maintenance services"]
[null,998598,"Other information services n.e.c."]
[null,998599,"Other support services n.e.c."]
[null,9986,"Support services to agriculture, hunting, forestry, fishing, mining and utilities"]
[null,99861,"Support services to agriculture, hunting, forestry and fishing"]
[null,998611,"Support services to crop production"]
[null,998612,"Animal husbandry services"]
[null,998613,"Support services to hunting"]
[null,998614,"Support services to forestry and logging"]
[null,998615,"Support services to fishing"]
[null,998619,"Other support services to agriculture, hunting, forestry and fishing"]
[null,99862,"Support services to mining"]
[null,998621,"Support services to oil and gas extraction"]
[null,998622,"Support services to other mining n.e.c."]
[null,99863,"Support services to electricity, gas and water distribution"]
[null,998631,"Support services to electricity transmission and distribution"]
[null,998632,"Support services to gas distribution"]
[null,998633,"Support services to water distribution"]
[null,998634,"Support services to Distribution services of steam, hot water and air-conditioning supply"]
[null,9987,"Maintenance, repair and installation (except construction) services"]
[null,99871,"Maintenance and repair services of fabricated metal products, machinery and equipment"]
[null,998711,"Maintenance and repair services of fabricated metal products, except machinery and equipment."]
[null,998712,"Maintenance and repair services of office and accounting machinery"]
[null,998713,"Maintenance and repair services of computers and peripheral equipment"]
[null,998714,"Maintenance and repair services of transport machinery and equipment"]
[null,998715,"Maintenance and repair services of electrical household appliances"]
[null,998716,"Maintenance and repair services of telecommunication equipments and apparatus"]
[null,998717,"Maintenance and repair services of commercial and industrial machinery."]
[null,998718,"Maintenance and repair services of elevators and escalators"]
[null,998719,"Maintenance and repair services of other machinery and equipments"]
[null,99872,"Repair services of other goods"]
[null,998721,"Repair services of footwear and leather goods"]
[null,998722,"Repair services of watches, clocks and jewellery"]
[null,998723,"Repair services of garments and household textiles"]
[null,998724,"Repair services of furniture"]
[null,998725,"Repair services of bicycles"]
[null,998726,"Maintenance and repair services of musical instruments"]
[null,998727,"Repair services for photographic equipment and cameras"]
[null,998729,"Maintenance and repair services of other goods n.e.c."]
[null,99873,"Installation services (other than construction)"]
[null,998731,"Installation services of fabricated metal products, except machinery and equipment."]
[null,998732,"Installation services of industrial, manufacturing and service industry machinery and equipment."]
[null,998733,"Installation services of office and accounting machinery and computers"]
[null,998734,"Installation services of radio, television and communications equipment and apparatus."]
[null,998735,"Installation services of professional medical machinery and equipment, and precision and optical instruments."]
[null,998736,"Installation services of electrical machinery and apparatus n.e.c."]
[null,998739,"Installation services of other goods n.e.c."]
[null,9988,"Manufacturing services on physical inputs (goods) owned by others"]
[null,99881,"Food, beverage and tobacco manufacturing services"]
[null,998811,"Meat processing services"]
[null,998812,"Fish processing services"]
[null,998813,"Fruit and vegetables processing services"]
[null,998814,"Vegetable and animal oil and fat manufacturing services"]
[null,998815,"Dairy product manufacturing services"]
[null,998816,"Other food product manufacturing services"]
[null,998817,"Prepared animal feeds manufacturing services"]
[null,998818,"Beverage manufacturing services"]
[null,998819,"Tobacco manufacturing services n.e.c."]
[null,99882,"Textile, wearing apparel and leather manufacturing services"]
[null,998821,"Textile manufacturing services"]
[null,998822,"Wearing apparel manufacturing services"]
[null,998823,"Leather and leather product manufacturing services"]
[null,99883,"Wood and paper manufacturing services"]
[null,998831,"Wood and wood product manufacturing services"]
[null,998832,"Paper and paper product manufacturing services"]
[null,99884,"Petroleum, chemical and pharmaceutical product manufacturing services"]
[null,998841,"Coke and refined petroleum product manufacturing services"]
[null,998842,"Chemical product manufacturing services"]
[null,998843,"Pharmaceutical product manufacturing services"]
[null,99885,"Rubber, plastic and other non-metallic mineral product manufacturing service"]
[null,998851,"Rubber and plastic product manufacturing services"]
[null,998852,"Plastic product manufacturing services"]
[null,998853,"Other non-metallic mineral product manufacturing services"]
[null,99886,"Basic metal manufacturing services"]
[null,"998861","Basic metal manufacturing services"]
[null,99887,"Fabricated metal product, machinery and equipment manufacturing services"]
[null,998871,"Structural metal product, tank, reservoir and steam generator manufacturing services"]
[null,998872,"Weapon and ammunition manufacturing services"]
[null,998873,"Other fabricated metal product manufacturing and metal treatment services"]
[null,998874,"Computer, electronic and optical product manufacturing services"]
[null,998875,"Electrical equipment manufacturing services"]
[null,998876,"General-purpose machinery manufacturing services n.e.c."]
[null,998877,"Special-purpose machinery manufacturing services"]
[null,99888,"Transport equipment manufacturing services"]
[null,998881,"Motor vehicle and trailer manufacturing services"]
[null,998882,"Other transport equipment manufacturing services"]
[null,99889,"Other manufacturing services"]
[null,998891,"Furniture manufacturing services"]
[null,998892,"Jewellery manufacturing services"]
[null,998893,"Imitation jewellery manufacturing services"]
[null,998894,"Musical instrument manufacturing services"]
[null,998895,"Sports goods manufacturing services"]
[null,998896,"Game and toy manufacturing services"]
[null,998897,"Medical and dental instrument and supply manufacturing services"]
[null,998899,"Other manufacturing services n.e.c."]
[null,9989,"Other manufacturing services; publishing, printing and reproduction services; materials recovery services"]
[null,99891,"Publishing, printing and reproduction services"]
[null,998911,"Publishing, on a fee or contract basis"]
[null,998912,"Printing and reproduction services of recorded media, on a fee or contract basis"]
[null,99892,"Moulding, pressing, stamping, extruding and similar plastic manufacturing services"]
[null,998921,"Moulding, pressing, stamping, extruding and similar plastic manufacturing services"]
[null,99893,"Casting, forging, stamping and similar metal manufacturing services"]
[null,998931,"Iron and steel casting services"]
[null,998932,"Non-ferrous metal casting services"]
[null,998933,"Metal forging, pressing, stamping, roll forming and powder metallurgy services"]
[null,99894,"Materials recovery (recycling) services, on a fee or contract basis"]
[null,998941,"Metal waste and scrap recovery (recycling) services, on a fee or contract basis"]
[null,998942,"Non-metal waste and scrap recovery (recycling) services, on a fee or contract basis"]
[null,9991,"Public administration and other services provided to the community as a whole; compulsory social security services"]
[null,99911,"Administrative services of the government"]
[null,999111,"Overall Government public services"]
[null,999112,"Public administrative services related to the provision of educational, health care, cultural and other social services, excluding social security service."]
[null,999113,"Public administrative services related to the more efficient operation of business."]
[null,999119,"Other administrative services of the government n.e.c."]
[null,99912,"Public administrative services provided to the community as a whole"]
[null,999121,"Public administrative services related to external affairs, diplomatic and consular services abroad."]
[null,999122,"Services related to foreign economic aid"]
[null,999123,"Services related to foreign military aid"]
[null,999124,"Military defence services"]
[null,999125,"Civil defence services"]
[null,999126,"Police and fire protection services"]
[null,999127,"Public administrative services related to law courts"]
[null,999128,"Administrative services related to the detention or rehabilitation of criminals."]
[null,999129,"Public administrative services related to other public order and safety affairs n.e.c."]
[null,99913,"Administrative services related to compulsory social security schemes."]
[null,999132,"Administrative services related to government employee pension schemes; old-age disability or survivors benefit schemes, other than for government employees"]
[null,999133,"Administrative services related to unemployment compensation benefit schemes"]
[null,999134,"Administrative services related to family and child allowance programmes"]
[null,9992,"Education services"]
[null,99921,"Pre-primary education services"]
[null,999210,"Pre-primary education services"]
[null,99922,"Primary education services"]
[null,999220,"Primary education services"]
[null,99923,"Secondary Education Services"]
[null,999231,"Secondary education services, general"]
[null,999232,"Secondary education services, technical and vocational."]
[null,99924,"Higher education services"]
[null,999241,"Higher education services, general"]
[null,999242,"Higher education services, technical"]
[null,999243,"Higher education services, vocational"]
[null,999249,"Other higher education services"]
[null,99925,"Specialised education services"]
[null,999259,"Specialised education services "]
[null,99929,"Other education & training services and educational support services"]
[null,999291,"Cultural education services"]
[null,999292,"Sports and recreation education services"]
[null,999293,"Commercial training and coaching services"]
[null,999294,"Other education and training services n.e.c."]
[null,999295,"services involving conduct of examination for admission to educational institutions"]
[null,999299,"Other Educational support services"]
[null,9993,"Human health and social care services"]
[null,99931,"Human health services"]
[null,999311,"Inpatient services"]
[null,999312,"Medical and dental services"]
[null,999313,"Childbirth and related services"]
[null,999314,"Nursing and Physiotherapeutic services"]
[null,999315,"Ambulance services"]
[null,999316,"Medical Laboratory and Diagnostic-imaging services"]
[null,999317,"Blood, sperm and organ bank services"]
[null,999319,"Other human health services including homeopathy, unani, ayurveda, naturopathy, acupuncture etc."]
[null,99932,"Residential care services for the elderly and disabled"]
[null,999321,"Residential health-care services other than by hospitals"]
[null,999322,"Residential care services for the elderly and persons with disabilities"]
[null,99933,"Other social services with accommodation"]
[null,999331,"Residential care services for children suffering from mental retardation, mental health illnesses or substance abuse"]
[null,999332,"Other social services with accommodation for children"]
[null,999333,"Residential care services for adults suffering from mental retardation, mental health illnesses or substance abuse"]
[null,999334,"Other social services with accommodation for adults"]
[null,99934,"Social services without accommodation for the elderly and disabled"]
[null,999341,"Vocational rehabilitation services"]
[null,999349,"Other social services without accommodation for the elderly and disabled n.e.c."]
[null,99935,"Other social services without accommodation"]
[null,999351,"Child day-care services"]
[null,999352,"Guidance and counseling services n.e.c. related to children"]
[null,999353,"Welfare services without accommodation"]
[null,999359,"Other social services without accommodation n.e.c."]
[null,9994,"Sewage and waste collection, treatment and disposal and other environmental protection services"]
[null,99941,"Sewerage, sewage treatment and septic tank cleaning services"]
[null,999411,"Sewerage and sewage treatment services"]
[null,999412,"Septic tank emptying and cleaning services"]
[null,99942,"Waste collection services"]
[null,999421,"Collection services of hazardous waste"]
[null,999422,"Collection services of non-hazardous recyclable materials"]
[null,999423,"General waste collection services, residential"]
[null,999424,"General waste collection services, other n.e.c."]
[null,99943,"Waste treatment and disposal services"]
[null,999431,"Waste preparation, consolidation and storage services"]
[null,999432,"Hazardous waste treatment and disposal services"]
[null,999433,"Non-hazardous waste treatment and disposal services"]
[null,99944,"Remediation services"]
[null,999441,"Site remediation and clean-up services"]
[null,999442,"Containment, control and monitoring services and other site remediation services"]
[null,999443,"Building remediation services"]
[null,999449,"Other remediation services n.e.c."]
[null,99945,"Sanitation and similar services"]
[null,999451,"Sweeping and snow removal services"]
[null,999459,"Other sanitation services n.e.c."]
[null,99949,"Others"]
[null,999490,"Other environmental protection services n.e.c."]
[null,9995,"Services of membership organisations"]
[null,99951,"Services furnished by business, employers and professional organizations Services"]
[null,999511,"Services furnished by business and employers organizations"]
[null,999512,"Services furnished by professional organizations"]
[null,99952,"Services furnished by trade unions"]
[null,999520,"Services furnished by trade unions"]
[null,99959,"Services furnished by other membership organizations"]
[null,999591,"Religious services"]
[null,999592,"Services furnished by political organizations"]
[null,999593,"Services furnished by human rights organizations"]
[null,999594,"Cultural and recreational associations"]
[null,999595,"Services furnished by environmental advocacy groups"]
[null,999596,"Services provided by youth associations"]
[null,999597,"Other civic and social organizations"]
[null,999598,"Home owners associations"]
[null,999599,"Services provided by other membership organizations n.e.c."]
[null,9996,"Recreational, cultural and sporting services"]
[null,99961,"Audiovisual and related services"]
[null,999611,"Sound recording services"]
[null,999612,"Motion picture, videotape, television and radio programme production services"]
[null,999613,"Audiovisual post-production services"]
[null,999614,"Motion picture, videotape and television programme distribution services"]
[null,999615,"Motion picture projection services"]
[null,99962,"Performing arts and other live entertainment event presentation and promotion services"]
[null,999621,"Performing arts event promotion and organization services"]
[null,999622,"Performing arts event production and presentation services"]
[null,999623,"Performing arts facility operation services"]
[null,999629,"Other performing arts and live entertainment services n.e.c."]
[null,99963,"Services of performing and other artists"]
[null,999631,"Services of performing artists including actors, readers, musicians, singers, dancers, TV personalities, independent models etc"]
[null,999632,"Services of authors, composers, sculptors and other artists, except performing artists"]
[null,999633,"Original works of authors, composers and other artists except performing artists, painters and sculptors"]
[null,99964,"Museum and preservation services"]
[null,999641,"Museum and preservation services of historical sites and buildings"]
[null,999642,"Botanical, zoological and nature reserve services"]
[null,99965,"Sports and recreational sports services"]
[null,999651,"Sports and recreational sports event promotion and organization services"]
[null,999652,"Sports and recreational sports facility operation services"]
[null,999659,"Other sports and recreational sports services n.e.c."]
[null,99966,"Services of athletes and related support services"]
[null,999661,"Services of athletes"]
[null,999662,"Support services related to sports and recreation"]
[null,99969,"Other amusement and recreational services"]
[null,999691,"Amusement park and similar attraction services"]
[null,999692,"Gambling and betting services including similar online services"]
[null,999693,"Coin-operated amusement machine services"]
[null,999694,"Lottery services"]
[null,999699,"Other recreation and amusement services n.e.c."]
[null,9997,"Other services "]
[null,99971,"Washing, cleaning and dyeing services"]
[null,999711,"Coin-operated laundry services"]
[null,999712,"Dry-cleaning services (including fur product cleaning services)"]
[null,999713,"Other textile cleaning services"]
[null,999714,"Pressing services"]
[null,999715,"Dyeing and colouring services"]
[null,999719,"Other washing, cleaning and dyeing services n.e.c"]
[null,99972,"Beauty and physical well-being services"]
[null,999721,"Hairdressing and barbers services"]
[null,999722,"Cosmetic treatment (including cosmetic/plastic surgery), manicuring and pedicuring services"]
[null,999723,"Physical well-being services including health club & fitness centre"]
[null,999729,"Other beauty treatment services n.e.c."]
[null,99973,"Funeral, cremation and undertaking services"]
[null,999731,"Cemeteries and cremation services"]
[null,999732,"Undertaking services"]
[null,99979,"Other miscellaneous services"]
[null,999791,"Services involving commercial use or exploitation of any event"]
[null,999792,"Agreeing to do an act"]
[null,999793,"Agreeing to refrain from doing an act"]
[null,999794,"Agreeing to tolerate an act"]
[null,999795,"Conduct of religious ceremonies/rituals by persons"]
[null,999799,"Other services n.e.c."]
[null,9998,"Domestic services"]
[null,99980,"Domestic services"]
[null,999800,"Domestic services both part time & full time"]
[null,9999,"Services provided by extraterritorial organisations and bodies"]
[null,99990,"Services provided by extraterritorial organizations and bodies."]
[null,999900,"Services provided by extraterritorial organizations and bodies"]
[null,995444,"Other assembly and erection services n.e.c."]
[null,996519,"Other land transport services of goods n.e.c."]
[null,996609,"Rental services of other transport vehicles n.e.c. with or without operator"]
[null,996929,"Other similar services."]
[null,997147,"Other property reinsurance services"]
[null,997312,"Leasing or rental services concerning agricultural machinery and equipment with or without operator"]
[null,998130,"Interdisciplinary research and experimental development services."]
[null,998216,"Other legal services n.e.c."]
[null,998224,"Other similar services n.e.c"]
[null,998240,"Insolvency and receivership services"]
[null,998344,"Surface surveying and map-making services"]
[null,998387,"Other Photography & Videography and their processing services n.e.c."]
[null,998397,"Sponsorship Services & Brand Promotion Services"]
[null,998540,"Packaging services of goods for others"]
[null,998860,"Basic metal manufacturing services"]
[null,998898,"Other manufacturing services n.e.c."]
[null,998920,"Moulding, pressing, stamping, extruding and similar plastic manufacturing services"]
[null,999131,"Administrative services related to sickness, maternity or temporary disablement benefit schemes."]

{"sheet":"Annexure 2","index":3,"n_rows":246,"n_cols":3,"rows_kept":246,"cut":false,"hidden":false,"merged":[]}
["Sr. No.","Country Name","Code to be used in DSPF Macro"]
[1,"Afghanistan","AF"]
[2,"Albania","AL"]
[3,"Algeria","DZ"]
[4,"American Samoa","AS"]
[5,"Andorra","AD"]
[6,"Angola","AO"]
[7,"Anguilla","AI"]
[8,"Argentina","AR"]
[9,"Australia","AU"]
[10,"Austria","AT"]
[11,"Bahamas","BS"]
[12,"Bahrain","BH"]
[13,"Bangladesh","BD"]
[14,"Barbados","BB"]
[15,"Belgium","BE"]
[16,"Belize","BZ"]
[17,"Benin","BJ"]
[18,"Bermuda","BM"]
[19,"Bhutan","BT"]
[20,"Bolivia","BO"]
[21,"Botswana","BW"]
[22,"Bouvet Island","BV"]
[23,"Brazil","BR"]
[24,"British Indian Ocean Territory","IO"]
[25,"British Virgin Islands","VG"]
[26,"Brunei","BN"]
[27,"Bulgaria","BG"]
[28,"Burkina Faso","BF"]
[29,"Burundi","BI"]
[30,"Canada","CA"]
[31,"CAPE VERDE ISLANDS","CV"]
[32,"Cayman Islands","KY"]
[33,"CENTRAL AFRICAN REPULIC","CF"]
[34,"Chad","TD"]
[35,"Chile","CL"]
[36,"China","CN"]
[37,"CHRISTMAS ISLANDS","CX"]
[38,"Cocos (Keeling Islands)","CC"]
[39,"Colombia","CO"]
[40,"Comoros","KM"]
[41,"Congo","CG"]
[42,"Cook Islands","CK"]
[43,"Costa Rica","CR"]
[44,"Cuba","CU"]
[45,"Cyprus","CY"]
[46,"Denmark","DK"]
[47,"DJIBOUTI","DJ"]
[48,"Dominica","DM"]
[49,"DOMINICAN REPULIC","DO"]
[50,"East Timor","TP"]
[51,"Ecuador","EC"]
[52,"Egypt","EG"]
[53,"El Salvador","SV"]
[54,"Equatorial Guinea","GQ"]
[55,"Ethiopia","ET"]
[56,"Faeroe Islands","FO"]
[57,"FALKLANDS ISLANDS","FK"]
[58,"Fiji","FJ"]
[59,"Finland","FI"]
[60,"France","FR"]
[61,"FRENCH GUYANA","GF"]
[62,"French Polynesia","PF"]
[63,"FRENCH SOUTH & ANTARTIC TERR","TF"]
[64,"Gabon","GA"]
[65,"Gambia","GM"]
[66,"Germany","DE"]
[67,"Ghana","GH"]
[68,"Gibraltar","GI"]
[69,"Greece","GR"]
[70,"Greenland","GL"]
[71,"Grenada","GD"]
[72,"Guadeloupe","GP"]
[73,"Guam","GU"]
[74,"GUATEMALA","GT"]
[75,"Guinea","GN"]
[76,"Guinea Bissau","GW"]
[77,"Guyana","GY"]
[78,"Haiti","HT"]
[79,"HEARD & MACDONALD ISLANDS","HM"]
[80,"Honduras","HN"]
[81,"Hong Kong","HK"]
[82,"Hungary","HU"]
[83,"Iceland","IS"]
[84,"India","IN"]
[85,"Indonesia","ID"]
[86,"Iran","IR"]
[87,"Iraq","IQ"]
[88,"Ireland","IE"]
[89,"Israel","IL"]
[90,"Italy","IT"]
[91,"Jamaica","JM"]
[92,"Togo","TG"]
[93,"TOKELAU ISLAND","TK"]
[94,"Tonga","TO"]
[95,"TRINIDAD & TOBAGO","TT"]
[96,"Tunisia","TN"]
[97,"Turkey","TR"]
[98,"TURKS & CAICOS ISLANDS","TC"]
[99,"Tuvalu","TV"]
[100,"UNITED ARAB EMIRATES","AE"]
[101,"UNITED STATES","US"]
[102,"US VIRGIN ISLANDS","VI"]
[103,"Uganda","UG"]
[104,"United Kingdom","GB"]
[105,"Vanuatu","VU"]
[106,"VATICAN CITY STATE(HOLY SEE)","VA"]
[107,"Venezuela","VE"]
[108,"WALLIS AND FUTUNA ISLANDS","WF"]
[109,"Western Sahara","EH"]
[110,"YEMEN, DEMOCRATIC","YE"]
[111,"Yugoslavia","YU"]
[112,"Zaire","ZR"]
[113,"Zambia","ZM"]
[114,"Zimbabwe","ZW"]
[115,"Croatia","HR"]
[116,"Russia","RU"]
[117,"Japan","JP"]
[118,"Jordan","JO"]
[119,"Kenya","KE"]
[120,"Kiribati","KI"]
[121,"KOREA,DEMOCRATIC PEOPLE`S REPUBLIC OF","KP"]
[122,"KOREA,REPUBLIC OF","KR"]
[123,"Kuwait","KW"]
[124,"LAO PEOPLE`S DEMOCRATIC REPUBLIC","LA"]
[125,"Lebanon","LB"]
[126,"Lesotho","LS"]
[127,"Liberia","LR"]
[128,"LIBYAN ARAB REPUBLIC","LY"]
[129,"LIECHTENSTEIN","LI"]
[130,"Lithuania","LT"]
[131,"Luxembourg","LU"]
[132,"MACAO ISLANDS","MO"]
[133,"Madagascar","MG"]
[134,"Malawi","MW"]
[135,"Malaysia","MY"]
[136,"Maldives","MV"]
[137,"Mali","ML"]
[138,"Malta","MT"]
[139,"Martinique","MQ"]
[140,"Mauritania","MR"]
[141,"Mauritius","MU"]
[142,"Mexico","MX"]
[143,"Monaco","MC"]
[144,"Mongolia","MN"]
[145,"Montserrat","MS"]
[146,"Morocco","MA"]
[147,"Mozambique","MZ"]
[148,"NAMBIA","NA"]
[149,"Nauru","NR"]
[150,"Nepal","NP"]
[151,"Netherlands","NL"]
[152,"NETHERLANDS ANTILLES","AN"]
[153,"New Caledonia","NC"]
[154,"New Zealand","NZ"]
[155,"Nicaragua","NI"]
[156,"NIGER","NE"]
[157,"Nigeria","NG"]
[158,"NIUE ISLAND","NU"]
[159,"NORFOLK ISLAND","NF"]
[160,"Norway","NO"]
[161,"Oman","OM"]
[162,"Pakistan","PK"]
[163,"Panama","PA"]
[164,"Papua New Guinea","PG"]
[165,"Paraguay","PY"]
[166,"Peru","PE"]
[167,"Philippines","PH"]
[168,"PITCAIRN ISLANDS","PN"]
[169,"Poland","PL"]
[170,"Portugal","PT"]
[171,"Qatar","QA"]
[172,"Reunion","RE"]
[173,"Romania","RO"]
[174,"Puerto Rico","PR"]
[175,"Rwanda","RW"]
[176,"ST LUCIA","LC"]
[177,"ST VINCENT","VC"]
[178,"Samoa","WS"]
[179,"San Marino","SM"]
[180,"SAO TOME AND PRINCIPE","ST"]
[181,"Sudan","SD"]
[182,"Saudi Arabia","SA"]
[183,"Senegal","SN"]
[184,"Seychelles","SC"]
[185,"SIERRA LEONA","SL"]
[186,"Singapore","SG"]
[187,"Solomon Islands","SB"]
[188,"SOMAALIA","SO"]
[189,"South Africa","ZA"]
[190,"Spain","ES"]
[191,"Sri Lanka","LK"]
[192,"ST HELENA & ASCENSION ISLAND","SH"]
[193,"ST KITTS-NEVIS-ANGUILLA","KN"]
[194,"SURINAM","SR"]
[195,"SVALBARD AND JAM MAYEN ISLANDS","SJ"]
[196,"Swaziland","SZ"]
[197,"Sweden","SE"]
[198,"Switzerland","CH"]
[199,"Taiwan","TW"]
[200,"THAILAND","TH"]
[201,"Antartica","AQ"]
[202,"Antigua","AG"]
[203,"Armenia","AM"]
[204,"Aruba","AW"]
[205,"Azarbaijan","AZ"]
[206,"Belarus","BY"]
[207,"Bosnia & Herzegovina","BA"]
[208,"Cambodia","KH"]
[209,"Cameroon","CM"]
[210,"Cote D Ivoire","CI"]
[211,"Czech Republic","CZ"]
[212,"Eritrea","ER"]
[213,"Estonia","EE"]
[214,"Georgia","GE"]
[215,"Kazakistan","KZ"]
[216,"Kyrghystan","KG"]
[217,"Latvia","LV"]
[218,"Macedonia,The Former Yugoslav Republic Of","MK"]
[219,"Marshall Islands","MH"]
[220,"Micronesia","FM"]
[221,"Moldova,Republic Of","MD"]
[222,"Myanmar","MM"]
[223,"Northern Mariana Islands","MP"]
[224,"Palau","PW"]
[225,"Slovak Republic","SK"]
[226,"Slovenia","SI"]
[227,"St Pierre & Miquelon","PM"]
[228,"Syria","SY"]
[229,"Tajikistan","TJ"]
[230,"Tanzania","TZ"]
[231,"Turkmenistan","TM"]
[232,"Ukraine","UA"]
[233,"United States Minor Outlaying Islands","UM"]
[234,"Urugay","UY"]
[235,"Uzbekistan","UZ"]
[236,"VIETNAM, DEMOCRATIC REP. OF","VN"]
[237,"Congo Democratic","CD"]
[238,"Installations In International Waters","XZ"]
[239,"Mayotte","YT"]
[240,"Guernsey","GG"]
[241,"Jersey","JE"]
[242,"Montenegro","ME"]
[243,"Serbia","RS"]
[244,"Timor-Leste","TL"]
[245,"KOSOVO","KO"]

{"sheet":"Annexure 3","index":4,"n_rows":70,"n_cols":2,"rows_kept":70,"cut":false,"hidden":false,"merged":[[0,0,0,1]]}
[" Default List of Services approved by Department of Commerce"]
["Sl.No","List of Approved Services"]
[1,"Airport Authority Services"]
[2,"Architect Services"]
[3,"Asset Management Services"]
[4,"Advertising agency services"]
[5,"Airport services"]
[6,"Banking and other financial services"]
[7,"Business Exhibition services"]
[8,"Cargo Handling services"]
[9,"Chartered Accountant Services"]
[10,"Cleaning Activity services"]
[11,"Clearing & forwarding agents services"]
[12,"Commercial or industrial construction services"]
[13,"Company secretary services"]
[14,"Computer network services"]
[15,"Consulting Engineer’s services"]
[16,"Cost accountant services"]
[17,"Courier services"]
[18,"Credit rating agency services"]
[19,"Custom house agent services"]
[20,"Commercial training & coaching services"]
[21,"Convention services"]
[22,"Copyright services"]
[23,"Design services"]
[24,"Development & supply of content services"]
[25,"Erection, commission and installation services"]
[26,"General insurance business services"]
[27,"Goods transport agency services"]
[28,"Information  Technology Software Services"]
[29,"Interior decorator services"]
[30,"Internet communication services"]
[31,"Intellectual property services"]
[32,"Legal consultancy services"]
[33,"Management, maintenance or repair services"]
[34,"Manpower Recruitment and supply agency services"]
[35,"Market research agency services"]
[36,"Other port services"]
[37,"Outdoor caterer services"]
[38,"Packaging activity services"]
[39,"Port services"]
[40,"Processing & clearing house services"]
[41,"Renting of immovable property services"]
[42,"Security agency services"]
[43,"Site formation & clearance, excavation earth moving"]
[44,"Storage & warehousing services"]
[45,"Supply of tangible goods"]
[46,"Survey & map making services"]
[47,"Scientific or technical consultancy services"]
[48,"Sound recording studio or agency services"]
[49,"Technical inspection and certification"]
[50,"Technical Testing and Analysis services"]
[51,"Telecommunication services"]
[52,"Transport of goods by Air services"]
[53,"Transport of goods by Rail services"]
[54,"Transport of goods by Road services"]
[55,"Works contract services"]
[56,"Transport of goods services"]
[57,"Construction services"]
[58,"On-line Information and database access services"]
[59,"Rent-a-cab Scheme Operator’s Services"]
[60,"SEZ Online Services"]
[61,"Air Travel Agent Services"]
[62,"Rail Travel Agent’s Services"]
[63,"Travel Agent’s Services"]
[64,"Business Support Service"]
[65,"Transport Passengers by Air"]
[66,"Accommodation service"]
[67,"Management and Business Consultant Services."]
[68,"Any other services as approved by DC offices."]

{"sheet":"Lookup","index":5,"n_rows":708,"n_cols":21,"rows_kept":708,"cut":false,"hidden":true,"merged":[[0,6,0,7]]}
["Invoice Type","Currency","BOE_CNTRY_CODE","SAC","Service Description",null," Default List of Services approved by Department of Commerce",null,null,null,"Supply under Bond / LUT",null,null,null,null,"State_Cde","State_Desc",null,null,"Refund Claimed By","Invoice Payment Status"]
["Invoice","AUD","AF",9954,"Construction services",null,"Sl.No","List of Approved Services",null,null,"Supply under Payment of IGST",null,null,null,null,1,"Andaman And Nicobar",null,null,"DTA","Paid"]
["Debit Note","BHD","AL",99541,"General Construction services of buildings",null,1,"Airport Authority Services",null,null,null,null,null,null,null,2,"Andhra Pradesh",null,null,"SEZ","Not Paid"]
["Credit Note","NOK","DZ",995411,"General Construction services of single dwelling or multi dewlling or multi-storied residential buildings",null,2,"Architect Services",null,null,null,null,null,null,null,3,"Arunachal Pradesh"]
[null,"CAD","AS",995412,"General Construction services of other residential buildings such as old age homes, homeless shelters, hostels etc",null,3,"Asset Management Services",null,null,null,null,null,null,null,4,"Assam"]
[null,"NZD","AD",995413,"General Construction services of industrial buildings such as buildings used for production activities (used for assembly line activities), workshops, storage buildings and other similar industrial buildings",null,4,"Advertising agency services",null,null,null,null,null,null,null,5,"Bihar"]
[null,"DKK","AO",995414,"General Construction services of commercial buildings such as office buildings, exhibition & marriage halls, malls, hotels, restaurants, airports, rail or road terminals, parking garages, petrol and service stations, theatres and other similar buildings.",null,5,"Airport services",null,null,null,null,null,null,null,6,"Chandigarh"]
[null,"HKD","AI",995415,"General Construction services of other non-residential buildings such as educational institutions, hospitals, clinics including vertinary clinics, religious establishments, courts, prisons, museums and other similar buildings",null,6,"Banking and other financial services",null,null,null,null,null,null,null,7,"Chhattisgarh"]
[null,"JPY","AR",995416,"General Construction Services of other buildings n.e.c",null,7,"Business Exhibition services",null,null,null,null,null,null,null,8,"Dadar And Nagar Haveli"]
[null,"KES","AU",995419,"Services involving Repair, alterations, additions, replacements, renovation, maintenance or remodelling of the buildings covered above.",null,8,"Cargo Handling services",null,null,null,null,null,null,null,9,"Daman And Diu"]
[null,"KWD","AT",99542,"General construction services of civil engineering works",null,9,"Chartered Accountant Services",null,null,null,null,null,null,null,10,"Delhi"]
[null,"CHF","BS",995421,"General construction services of highways, streets, roads, railways and airfield runways, bridges and tunnels",null,10,"Cleaning Activity services",null,null,null,null,null,null,null,11,"Goa"]
[null,"SAR","BH",995422,"General construction services of harbours, waterways, dams, water mains and lines, irrigation and other waterworks",null,11,"Clearing & forwarding agents services",null,null,null,null,null,null,null,12,"Gujarat"]
[null,"SGD","BD",995423,"General construction services of long-distance underground/overland/submarine pipelines, communication and electric power lines (cables); pumping stations and related works; transformer stations and related works.",null,12,"Commercial or industrial construction services",null,null,null,null,null,null,null,13,"Haryana"]
[null,"ZAR","BB","995424","General construction services of local water & sewage pipelines, electricity and communication cables & related works ",null,13,"Company secretary services",null,null,null,null,null,null,null,14,"Himachal Pradesh"]
[null,"SEK","BE",995425,"General construction services of mines and industrial plants",null,14,"Computer network services",null,null,null,null,null,null,null,15,"Jammu And Kashmir"]
[null,"AED","BZ",995426,"General Construction services of Power Plants and its related infrastructure",null,15,"Consulting Engineer’s services",null,null,null,null,null,null,null,16,"Jharkhand"]
[null,"GBP","BJ",995427,"General construction services of outdoor sport and recreation facilities",null,16,"Cost accountant services",null,null,null,null,null,null,null,17,"Karnataka"]
[null,"EUR","BM",995428,"General construction services of other civil engineering works n.e.c.",null,17,"Courier services",null,null,null,null,null,null,null,18,"Kerala"]
[null,"INR","BT","995429","Services involving Repair, alterations, additions, replacements, renovation, maintenance or remodelling of the constructions covered above.",null,18,"Credit rating agency services",null,null,null,null,null,null,null,19,"Lakshadweep"]
[null,"USD","BO",99543,"Site preparation services",null,19,"Custom house agent services",null,null,null,null,null,null,null,20,"Madhya Pradesh"]
[null,"AFA","BW",995431,"Demolition services",null,20,"Commercial training & coaching services",null,null,null,null,null,null,null,21,"Maharashtra"]
[null,"ALL","BV",995432,"Site formation and clearance services including preparation services to make sites ready for subsequent construction work, test drilling & boring & core extraction, digging of trenches.",null,21,"Convention services",null,null,null,null,null,null,null,22,"Manipur"]
[null,"DZD","BR",995433,"Excavating and earthmoving services",null,22,"Copyright services",null,null,null,null,null,null,null,23,"Meghalaya"]
[null,"ADP","IO",995434,"Water well drilling services and septic system installation services",null,23,"Design services",null,null,null,null,null,null,null,24,"Mizoram"]
[null,"AON","VG",995435,"Other site preparation services n.e.c",null,24,"Development & supply of content services",null,null,null,null,null,null,null,25,"Nagaland"]
[null,"XCD","BN",995439,"Services involving Repair, alterations, additions, replacements, maintenance of the constructions covered above.",null,25,"Erection, commission and installation services",null,null,null,null,null,null,null,26,"Orissa"]
[null,"ARS","BG",99544,"Assembly and erection of prefabricated constructions",null,26,"General insurance business services",null,null,null,null,null,null,null,27,"Puducherry"]
[null,"AMD","BF",995441,"Installation, assembly and erection services of prefabricated buildings",null,27,"Goods transport agency services",null,null,null,null,null,null,null,28,"Punjab"]
[null,"AWG","BI",995442,"Installation, assembly and erection services of other prefabricated structures and constructions",null,28,"Information  Technology Software Services",null,null,null,null,null,null,null,29,"Rajasthan"]
[null,"ATS","CA",995443,"Installation services of all types of street furniture (e.g., bus shelters, benches, telephone booths, public toilets, etc.)",null,29,"Interior decorator services",null,null,null,null,null,null,null,30,"Sikkim"]
[null,"AZM","CV",995449,"Services involving Repair, alterations, additions, replacements, maintenance of the constructions covered above.",null,30,"Internet communication services",null,null,null,null,null,null,null,31,"Tamil Nadu"]
[null,"BSD","KY",99545,"Special trade construction services",null,31,"Intellectual property services",null,null,null,null,null,null,null,32,"Tripura"]
[null,"BDT","CF",995451,"Pile driving and foundation services",null,32,"Legal consultancy services",null,null,null,null,null,null,null,33,"Uttarakhand"]
[null,"BBD","TD",995452,"Building framing & Roof Framing services",null,33,"Management, maintenance or repair services",null,null,null,null,null,null,null,34,"Uttar Pradesh"]
[null,"BYB","CL",995453,"Roofing and waterproofing services",null,34,"Manpower Recruitment and supply agency services",null,null,null,null,null,null,null,35,"West Bengal"]
[null,"BEF","CN",995454,"Concrete services",null,35,"Market research agency services",null,null,null,null,null,null,null,36,"Telangana"]
[null,"BZD","CX",995455,"Structural steel erection services",null,36,"Other port services"]
[null,"XOF","CC",995456,"Masonry services",null,37,"Outdoor caterer services"]
[null,"BMD","CO",995457,"Scaffolding services",null,38,"Packaging activity services"]
[null,"BTN","KM",995458,"Other special trade construction services\n",null,39,"Port services"]
[null,"BOB","CG",995459,"Services involving Repair, alterations, additions, replacements, maintenance of the constructions covered above.",null,40,"Processing & clearing house services"]
[null,"BAM","CK",99546,"Installation services",null,41,"Renting of immovable property services"]
[null,"BWP","CR",995461,"Electrical installation services including Electrical wiring & fitting services, fire alarm installation services, burglar alarm system installation services.",null,42,"Security agency services"]
[null,"BRL","CU",995462,"Water plumbing and drain laying services",null,43,"Site formation & clearance, excavation earth moving"]
[null,"BND","CY",995463,"Heating, ventilation and air conditioning equipment installation services",null,44,"Storage & warehousing services"]
[null,"BGL","DK",995464,"Gas fitting installation services",null,45,"Supply of tangible goods"]
[null,"BIF","DJ",995465,"Insulation services",null,46,"Survey & map making services"]
[null,"KHR","DM",995466,"Lift and escalator installation services",null,47,"Scientific or technical consultancy services"]
[null,"XAF","DO",995468,"Other installation services n.e.c.",null,48,"Sound recording studio or agency services"]
[null,"CVE","TP",995469,"Services n.e.c involving repair, alterations, additions,\nreplacements, renovation, maintenance or remodeling of the works\ncovered above. ",null,49,"Technical inspection and certification"]
[null,"KYD","EC",99547,"Building completion and finishing services",null,50,"Technical Testing and Analysis services"]
[null,"CLP","EG",995471,"Glazing services",null,51,"Telecommunication services"]
[null,"CNY","SV",995472,"Plastering services",null,52,"Transport of goods by Air services"]
[null,"COP","GQ",995473,"Painting services",null,53,"Transport of goods by Rail services"]
[null,"KMF","ET",995474,"Floor and wall tiling services",null,54,"Transport of goods by Road services"]
[null,"CRC","FO",995475,"Other floor laying, wall covering and wall papering services",null,55,"Works contract services"]
[null,"HRK","FK",995476,"Joinery and carpentry services",null,56,"Transport of goods services"]
[null,"CUP","FJ",995477,"Fencing and railing services",null,57,"Construction services"]
[null,"CYP","FI",995478,"Other building completion and finishing services n.e.c.",null,58,"On-line Information and database access services"]
[null,"CZK","FR",995479,"Services involving Repair, alterations, additions, replacements, maintenance of the completion/finishing works covered above.",null,59,"Rent-a-cab Scheme Operator’s Services"]
[null,"DJF","GF",9961,"Services in wholesale trade",null,60,"SEZ Online Services"]
[null,"DOP","PF",996111,"Services provided for a fee/commission or contract basis on wholesale trade",null,61,"Air Travel Agent Services"]
[null,"TPE","TF",9962,"Services in retail trade",null,62,"Rail Travel Agent’s Services"]
[null,"ECS","GA",996211,"Services provided for a fee/commission or contract basis on retail trade",null,63,"Travel Agent’s Services"]
[null,"EGP","GM",9963,"Accommodation, food and beverage services",null,64,"Business Support Service"]
[null,"SVC","DE",99631,"Accommodation services",null,65,"Transport Passengers by Air"]
[null,"EEK","GH",996311,"Room or unit accommodation services provided by Hotels, INN, Guest House, Club etc",null,66,"Accommodation service"]
[null,"ETB","GI",996312,"Camp site services",null,67,"Management and Business Consultant Services"]
[null,"FKP","GR",996313,"Recreational and vacation camp services",null,68,"Any other services as approved by DC offices"]
[null,"FJD","GL",99632,"Other accommodation services"]
[null,"FIM","GD",996321,"Room or unit accommodation services for students in student residences"]
[null,"FRF","GP",996322,"Room or unit accommodation services provided by Hostels, Camps, Paying Guest etc"]
[null,"XPF","GU",996329,"Other room or unit accommodation services n.e.c."]
[null,"GMD","GT",99633,"Food, edible preparations, alchoholic & non-alchocholic beverages serving services"]
[null,"GEL","GN",996331,"Services provided by Restaurants, Cafes and similar eating facilities including takeaway services, Room services and door delivery of food."]
[null,"DEM","GW",996332,"Services provided by Hotels, INN, Guest House, Club etc including Room services, takeaway services and door delivery of food."]
[null,"GHC","GY",996333,"Services provided in Canteen and other similar establishments"]
[null,"GIP","HT",996334,"Catering Services in Exhibition halls, Events, Marriage Halls and other outdoor/indoor functions."]
[null,"GRD","HM",996335,"Catering services in trains, flights etc."]
[null,"GTQ","HN",996336,"Preparation and/or supply services of food, edible preparations, alchoholic & non-alchocholic beverages to airlines and other transportation operators"]
[null,"GNF","HK",996337,"Other contract food services"]
[null,"GWP","HU",996339,"Other food, edible preparations, alchoholic & non-alchocholic beverages serving services n.e.c."]
[null,"GYD","IS",9964,"Passenger transport services"]
[null,"HTG","IN",99641,"Local transport and sightseeing transportation services of passengers"]
[null,"HNL","ID",996411,"Local land transport services of passengers by railways, metro, monorail, bus, tramway, autos, three wheelers, scooters and other motor vehicles"]
[null,"HUF","IR",996412,"Taxi services including radio taxi & other similar services;"]
[null,"ISK","IQ",996413,"Non-scheduled local bus and coach charter services"]
[null,"IDR","IE",996414,"Other land transportation services of passengers."]
[null,"IRR","IL",996415,"Local water transport services of passengers by ferries, cruises etc"]
[null,"IQD","IT",996416,"Sightseeing transportation services by rail, land, water & air"]
[null,"IEP","JM",996419,"Other local transportation services of passengers n.e.c."]
[null,"ILS","TG",99642,"Long-distance transport services of passengers"]
[null,"ITL","TK",996421,"Long-distance transport services of passengers through Rail network by Railways, Metro etc"]
[null,"JMD","TO",996422,"Long-distance transport services of passengers through Road by Bus, Car, non-scheduled long distance bus and coach services, stage carriage etc"]
[null,"JOD","TT",996423,"Taxi services including radio taxi & other similar services"]
[null,"KZT","TN",996424,"Coastal and transoceanic (overseas) water transport services of passengers by Ferries, Cruise Ships etc"]
[null,"KPW","TR",996425,"Domestic/International Scheduled Air transport services of passengers"]
[null,"KRW","TC",996426,"Domestic/international non-scheduled air transport services of Passengers"]
[null,"KGS","TV",996427,"Space transport services of passengers"]
[null,"LAK","AE",996429,"Other long-distance transportation services of passengers n.e.c."]
[null,"LVL","US",9965,"Goods transport services"]
[null,"LBP","VI",99651,"Land transport services of Goods"]
[null,"LSL","UG",996511,"Road transport services of Goods including letters, parcels, live animals, household & office furniture, containers etc by refrigerator vehicles, trucks, trailers, man or animal drawn vehicles\nor any other vehicles."]
[null,"LRD","GB",996512,"Railway transport services of Goods including letters, parcels, live animals, household & office furniture, intermodal containers, bulk cargo etc"]
[null,"LYD","VU",996513,"Transport services of petroleum & natural gas, water, sewerage and\nother goods via pipeline"]
[null,"LTL","VA",99652,"Water transport services of goods"]
[null,"LUF","VE",996521,"Coastal and transoceanic (overseas) water transport services of goods by refrigerator vessels, tankers, bulk cargo vessels, container ships etc"]
[null,"MOP","WF",996522,"Inland water transport services of goods by refrigerator vessels, tankers and other vessels."]
[null,"MKD","EH",99653,"Air and space transport services of freight"]
[null,"MGF","YE",996531,"Air transport services of freight\n"]
[null,"MWK","YU",996532,"Space transport services of freight"]
[null,"MYR","ZR",9966,"Rental services of transport vehicles with or without operators"]
[null,"MVR","ZM",99660,"Rental services of transport vehicles with or without operators"]
[null,"MTL","ZW",996601,"Rental services of road vehicles including buses, coaches, cars, trucks and other motor vehicles, with or without operator"]
[null,"MRO","HR",996602,"Rental services of water vessels including passenger vessels, freight vessels etc with or without operator"]
[null,"MUR","RU",996603,"Rental services of aircraft including passenger aircrafts, freight aircrafts etc with or without operator"]
[null,"MXN","JP",9967,"Supporting transport services"]
[null,"MDL","JO",99671,"Cargo handling services"]
[null,"MNT","KE",996711,"Container handling services"]
[null,"MAD","KI",996712,"Customs House Agent services"]
[null,"MZM","KP",996713,"Clearing and forwarding services"]
[null,"NMK","KR",996719,"Other cargo and baggage handling services"]
[null,"NAD","KW",99672,"Storage and warehousing services"]
[null,"NPR","LA",996721,"Refrigerated storage services"]
[null,"NLG","LB",996722,"Bulk liquid or gas storage services"]
[null,"ANG","LS",996729,"Other storage and warehousing services"]
[null,"NIO","LR",99673,"Supporting services for railway transport"]
[null,"NGN","LY",996731,"Railway pushing or towing services"]
[null,"OMR","LI",996739,"Other supporting services for railway transport\n"]
[null,"PKR","LT",99674,"Supporting services for road transport"]
[null,"PAB","LU",996741,"Bus station services"]
[null,"PGK","MO",996742,"Operation services of National Highways, State Highways, Expressways, Roads & streets; bridges and tunnel operation services."]
[null,"PYG","MG",996743,"Parking lot services"]
[null,"PEN","MW",996744,"Towing services for commercial and private vehicles"]
[null,"PHP","MY",996749,"Other supporting services for road transport n.e.c."]
[null,"PLN","MV",99675,"Supporting services for water transport (coastal, transoceanic and inland waterways)"]
[null,"PTE","ML",996751,"Port and waterway operation services (excl. cargo handling) such as operation services of ports, docks, light houses, light ships etc"]
[null,"QAR","MT",996752,"Pilotage and berthing services"]
[null,"RON","MQ",996753,"Vessel salvage and refloating services"]
[null,"RUR","MR",996759,"Other supporting services for water transport n.e.c."]
[null,"RWF","MU",99676,"Supporting services for air or space transport"]
[null,"SHP","MX",996761,"Airport operation services (excl. cargo handling)"]
[null,"WST","MC",996762,"Air traffic control services"]
[null,"STD","MN",996763,"Other supporting services for air transport"]
[null,"SCR","MS",996764,"Supporting services for space transport"]
[null,"SLL","MA",99679,"Other supporting transport services"]
[null,"SKK","MZ",996791,"Goods transport agency services for road transport"]
[null,"SIT","NA",996792,"Goods transport agency services for other modes of transport"]
[null,"SBD","NR",996793,"Other goods transport services n.e.c"]
[null,"SOS","NP",996799,"Other supporting transport services n.e.c"]
[null,"ESP","NL",9968,"Postal and courier services"]
[null,"LKR","AN",99681,"Postal and courier services"]
[null,"SDD","NC",996811,"Postal services including post office counter services, mail box rental services."]
[null,"SRG","NZ",996812,"Courier services"]
[null,"SZL","NI",996813,"Local delivery services"]
[null,"SYP","NE",996819,"Other Delivery Services n.e.c"]
[null,"TWD","NG",9969,"Electricity, gas, water and other distribution services"]
[null,"TJR","NU",99691,"Electricity and gas distribution services"]
[null,"TZS","NF",996911,"Electricity transmission services"]
[null,"THB","NO",996912,"Electricity distribution services"]
[null,"TOP","OM",996913,"Gas distribution services"]
[null,"TTD","PK",99692,"Water distribution and other services"]
[null,"TND","PA",996921,"Water distribution services"]
[null,"TRY","PG",996922,"Distribution of steam, hot water and air-conditioning supply\nthrough mains."]
[null,"TMM","PY",9971,"Financial services and related services"]
[null,"UGX","PE",99711,"Financial services (except investment banking, insurance services and pension services)"]
[null,"UAH","PH",997111,"Central banking services"]
[null,"UYU","PN",997112,"Deposit services"]
[null,"UZS","PL",997113,"Credit-granting services including stand-by commitment, guarantees & securities"]
[null,"VUV","PT",997114,"Financial leasing services"]
[null,"VEB","QA",997119,"Other financial services (except investment banking, insurance services and pension services)"]
[null,"VND","RE",99712,"Investment banking services "]
[null,"YER","RO",997120,"Investment banking services"]
[null,"ZRN","PR",99713,"Insurance and pension services (excluding reinsurance services)"]
[null,"ZMK","RW",997131,"pension services"]
[null,"ZWD","LC",997132,"Life insurance services (excluding reinsurance services)"]
[null,"RUB","VC",997133,"Accident and health insurance services"]
[null,null,"WS",997134,"Motor vehicle insurance services"]
[null,null,"SM",997135,"Marine, aviation, and other transport insurance services"]
[null,null,"ST",997136,"Freight insurance services & Travel insurance services"]
[null,null,"SD",997137,"Other property insurance services"]
[null,null,"SA",997139,"Other non-life insurance services (excluding reinsurance services)"]
[null,null,"SN",99714,"Reinsurance services"]
[null,null,"SC",997141,"Life reinsurance services"]
[null,null,"SL",997142,"Accident and health reinsurance services"]
[null,null,"SG",997143,"Motor vehicle reinsurance services"]
[null,null,"SB",997144,"Marine, aviation and other transport reinsurance services"]
[null,null,"SO",997145,"Freight reinsurance services"]
[null,null,"ZA",997146,"Other property reinsurance services"]
[null,null,"ES",997149,"Other non-life reinsurance services"]
[null,null,"LK",99715,"Services auxiliary to financial services (other than to insurance and pensions)"]
[null,null,"SH",997151,"Services related to investment banking such as mergers & acquisition services, corporate finance & venture capital services"]
[null,null,"KN",997152,"Brokerage and related securities and commodities services including commodity exchange services"]
[null,null,"SR",997153,"Portfolio management services except pension funds"]
[null,null,"SJ",997154,"Trust and custody services"]
[null,null,"SZ",997155,"Services related to the administration of financial markets"]
[null,null,"SE",997156,"Financial consultancy services"]
[null,null,"CH",997157,"Foreign exchange services"]
[null,null,"TW",997158,"Financial transactions processing and clearing house services"]
[null,null,"TH",997159,"Other services auxiliary to financial services"]
[null,null,"AQ",99716,"Services auxillary to insurance and pensions"]
[null,null,"AG",997161,"Insurance brokerage and agency services"]
[null,null,"AM",997162,"Insurance claims adjustment services"]
[null,null,"AW",997163,"Actuarial services"]
[null,null,"AZ",997164,"Pension fund management services"]
[null,null,"BY",997169,"Other services auxiliary to insurance and pensions"]
[null,null,"BA",99717,"Services of holding financial assets"]
[null,null,"KH",997171,"Services of holding equity of subsidiary companies"]
[null,null,"CM",997172,"Services of holding securities and other assets of trusts and funds and similar financial entities"]
[null,null,"CI",9972,"Services by way of renting of residential dwelling for use as residence."]
[null,null,"CZ",99721,"Real estate services involving owned or leased property"]
[null,null,"ER",997211,"Rental or leasing services involving own or leased residential property"]
[null,null,"EE",997212,"Rental or leasing services involving own or leased non-residential property"]
[null,null,"GE",997213,"Trade services of buildings"]
[null,null,"KZ",997214,"Trade services of time-share properties"]
[null,null,"KG",997215,"Trade services of vacant and subdivided land"]
[null,null,"LV",99722,"Real estate services on a fee/commission basis or contract basis"]
[null,null,"MK",997221,"Property management services on a fee/commission basis or contract basis"]
[null,null,"MH",997222,"Building sales on a fee/commission basis or contract basis"]
[null,null,"FM",997223,"Land sales on a fee/commission basis or contract basis"]
[null,null,"MD",997224,"Real estate appraisal services on a fee/commission basis or contract basis"]
[null,null,"MM",9973,"Leasing or rental services with or without operator"]
[null,null,"MP",99731,"Leasing or rental services concerning machinery and equipment with or without operator"]
[null,null,"PW",997311,"Leasing or rental services concerning transport equipments including containers, with or without operator"]
[null,null,"SK",997313,"Leasing or rental services concerning agricultural machinery and\nequipment with or without operator"]
[null,null,"SI",997314,"Leasing or rental services concerning construction machinery and\nequipment with or without operator"]
[null,null,"PM",997315,"Leasing or rental services concerning office machinery and\nequipment (except computers) with or without operator"]
[null,null,"SY",997316,"Leasing or rental services concerning computers with or without\noperators"]
[null,null,"TJ",997319,"Leasing or rental services concerning other machinery and\nequipment with or without operator"]
[null,null,"TZ",99732,"Leasing or rental services concerning other goods"]
[null,null,"TM",997321,"Leasing or rental services concerning televisions, radios, video cassette recorders, projectors, audio systems and related equipment and accessories (Home entertainment equipment )"]
[null,null,"UA",997322,"Leasing or rental services concerning video tapes and disks (Home entertainment equipment )"]
[null,null,"UM",997323,"Leasing or rental services concerning furniture and other household appliances"]
[null,null,"UY",997324,"Leasing or rental services concerning pleasure and leisure equipment."]
[null,null,"UZ",997325,"Leasing or rental services concerning household linen."]
[null,null,"VN",997326,"Leasing or rental services concerning textiles, clothing and footwear."]
[null,null,"CD",997327,"Leasing or rental services concerning do-it-yourself machinery and equipment"]
[null,null,"XZ",997329,"Leasing or rental services concerning other goods"]
[null,null,"YT",99733,"Licensing services for the right to use intellectual property and similar products"]
[null,null,"GG",997331,"Licensing services for the right to use computer software and databases."]
[null,null,"JE",997332,"Licensing services for the right to broadcast and show original films, sound recordings, radio and television programme etc."]
[null,null,"ME",997333,"Licensing services for the right to reproduce original art works"]
[null,null,"RS",997334,"Licensing services for the right to reprint and copy manuscripts, books, journals and periodicals."]
[null,null,"TL",997335,"Licensing services for the right to use R&D products"]
[null,null,"KO",997336,"Licensing services for the right to use trademarks and franchises"]
[null,null,null,997337,"Licensing services for the right to use minerals including its exploration and evaluation"]
[null,null,null,997338,"Licensing services for right to use other natural resources including telecommunication spectrum"]
[null,null,null,997339,"Licensing services for the right to use other intellectual property products"]
[null,null,null,9981,"Research and development services"]
[null,null,null,99811,"Research and experimental development services in natural sciences and engineering."]
[null,null,null,998111,"Research and experimental development services in natural sciences"]
[null,null,null,998112,"Research and experimental development services in engineering and technology"]
[null,null,null,998113,"Research and experimental development services in medical sciences and pharmacy."]
[null,null,null,998114,"Research and experimental development services in agricultural sciences."]
[null,null,null,99812,"Research and experimental development services in social sciences and humanities."]
[null,null,null,998121,"Research and experimental development services in social sciences."]
[null,null,null,998122,"Research and experimental development services in humanities"]
[null,null,null,99813,"Interdisciplinary research services."]
[null,null,null,99814,"Research and development originals"]
[null,null,null,998141,"Research and development originals in pharmaceuticals"]
[null,null,null,998142,"Research and development originals in agriculture"]
[null,null,null,998143,"Research and development originals in biotechnology"]
[null,null,null,998144,"Research and development originals in computer related sciences"]
[null,null,null,998145,"Research and development originals in other fields n.e.c."]
[null,null,null,9982,"Legal services"]
[null,null,null,99821,"Legal services"]
[null,null,null,998211,"Legal advisory and representation services concerning criminal law."]
[null,null,null,998212,"Legal advisory and representation services concerning other fields of law."]
[null,null,null,998213,"Legal documentation and certification services concerning patents, copyrights and other intellectual property rights."]
[null,null,null,998214,"Legal documentation and certification services concerning other documents."]
[null,null,null,998215,"Arbitration and conciliation services"]
[null,null,null,99822,"Accounting, auditing and bookkeeping services"]
[null,null,null,998221,"Financial auditing services"]
[null,null,null,998222,"Accounting and bookkeeping services"]
[null,null,null,998223,"Payroll services"]
[null,null,null,99823,"Tax consultancy and preparation services"]
[null,null,null,998231,"Corporate tax consulting and preparation services"]
[null,null,null,998232,"Individual tax preparation and planning services"]
[null,null,null,99824,"Insolvency and receivership services"]
[null,null,null,99831,"Management consulting and management services; information technology services."]
[null,null,null,998311,"Management consulting and management services including financial, strategic, human resources, marketing, operations and supply chain management."]
[null,null,null,998312,"Business consulting services including pubic relations services"]
[null,null,null,998313,"Information technology (IT) consulting and support services"]
[null,null,null,998314,"Information technology (IT) design and development services"]
[null,null,null,998315,"Hosting and information technology (IT) infrastructure provisioning services"]
[null,null,null,998316,"IT infrastructure and network management services"]
[null,null,null,998319,"Other information technology services n.e.c"]
[null,null,null,99832,"Architectural services, urban and land planning and landscape architectural services"]
[null,null,null,998321,"Architectural advisory services"]
[null,null,null,998322,"Architectural services for residential building projects"]
[null,null,null,998323,"Architectural services for non-residential building projects"]
[null,null,null,998324,"Historical restoration architectural services"]
[null,null,null,998325,"Urban planning services"]
[null,null,null,998326,"Rural land planning services"]
[null,null,null,998327,"Project site master planning services"]
[null,null,null,998328,"Landscape architectural services and advisory services"]
[null,null,null,99833,"Engineering services"]
[null,null,null,998331,"Engineering advisory services"]
[null,null,null,998332,"Engineering services for building projects"]
[null,null,null,998333,"Engineering services for industrial and manufacturing projects"]
[null,null,null,998334,"Engineering services for transportation projects"]
[null,null,null,998335,"Engineering services for power projects"]
[null,null,null,998336,"Engineering services for telecommunications and broadcasting projects"]
[null,null,null,998337,"Engineering services for waste management projects (hazardous and non-hazardous), for water, sewerage and drainage projects."]
[null,null,null,998338,"Engineering services for other projects n.e.c."]
[null,null,null,998339,"Project management services for construction projects"]
[null,null,null,99834,"Scientific and other technical services"]
[null,null,null,998341,"Geological and geophysical consulting services"]
[null,null,null,998342,"Surface surveying and map-making services"]
[null,null,null,998343,"Mineral exploration and evaluation"]
[null,null,null,998345,"Weather forecasting and meteorological services"]
[null,null,null,998346,"Technical testing and analysis services"]
[null,null,null,998347,"Certification of ships, aircraft, dams, etc."]
[null,null,null,998348,"Certification and authentication of works of art"]
[null,null,null,998349,"Other technical and scientific services n.e.c."]
[null,null,null,99835,"Veterinary services"]
[null,null,null,998351,"Veterinary services for pet animals"]
[null,null,null,998352,"Veterinary services for livestock"]
[null,null,null,998359,"Other veterinary services"]
[null,null,null,99836,"Advertising services and provision of advertising space or time."]
[null,null,null,998361,"Advertising Services"]
[null,null,null,998362,"Purchase or sale of advertising space or time, on commission"]
[null,null,null,998363,"Sale of advertising space in print media (except on commission)"]
[null,null,null,998364,"Sale of TV/radio advertising time (except on commission)"]
[null,null,null,998365,"Sale of Internet advertising space (except on commission)"]
[null,null,null,998366,"Sale of other advertising space or time (except on commission)"]
[null,null,null,99837,"Market research and public opinion polling services"]
[null,null,null,998371,"Market research services"]
[null,null,null,998372,"Public opinion polling services"]
[null,null,null,99838,"Photography & Videography and their processing services"]
[null,null,null,998381,"Portrait photography services"]
[null,null,null,998382,"Advertising and related photography services"]
[null,null,null,998383,"Event photography and event videography services"]
[null,null,null,998384,"Specialty photography services"]
[null,null,null,998385,"Restoration and retouching services of photography"]
[null,null,null,998386,"Photographic & videographic processing services"]
[null,null,null,99839,"Other professional, technical and business services."]
[null,null,null,998391,"Specialty design services including interior design, fashion design, industrial design and other specialty design services"]
[null,null,null,998392,"Design originals"]
[null,null,null,998393,"Scientific and technical consulting services n.e.c."]
[null,null,null,998394,"Original compilations of facts/information"]
[null,null,null,998395,"Translation and interpretation services"]
[null,null,null,998396,"Trademarks and franchises"]
[null,null,null,998399,"Other professional, technical and business services n.e.c."]
[null,null,null,9984,"Telecommunications, broadcasting and information supply Services"]
[null,null,null,99841,"Telephony and other telecommunications services"]
[null,null,null,998411,"Carrier services"]
[null,null,null,998412,"Fixed telephony services"]
[null,null,null,998413,"Mobile telecommunications services"]
[null,null,null,998414,"Private network services"]
[null,null,null,998415,"Data transmission services"]
[null,null,null,998419,"Other telecommunications services"]
[null,null,null,99842,"Internet telecommunications services"]
[null,null,null,998421,"Internet backbone services"]
[null,null,null,998422,"Internet access services"]
[null,null,null,998423,"Fax, telephony over the Internet"]
[null,null,null,998424,"Audio conferencing and video conferencing over the Internet"]
[null,null,null,998429,"Other Internet telecommunication services"]
[null,null,null,99843,"On-line content"]
[null,null,null,998431,"On-line text based information such as on-line books, on-line"]
[null,null,null,998432,"newspapers and periodicals, on-line directories and mailing lists"]
[null,null,null,998433,"On-line video content"]
[null,null,null,998434,"Software downloads"]
[null,null,null,998439,"Other on-line contents n.e.c."]
[null,null,null,99844,"News agency services"]
[null,null,null,998441,"News agency services to newspapers and periodicals"]
[null,null,null,998442,"Services of independent journalists and press photographers"]
[null,null,null,998443,"News agency services to audiovisual media"]
[null,null,null,99845,"Library and archive services"]
[null,null,null,998451,"Library services"]
[null,null,null,998452,"Operation services of public archives including digital archives"]
[null,null,null,998453,"Operation services of historical archives including digital archives"]
[null,null,null,99846,"Broadcasting, programming and programme distribution services"]
[null,null,null,998461,"Radio broadcast originals"]
[null,null,null,998462,"Television broadcast originals"]
[null,null,null,998463,"Radio channel programmes"]
[null,null,null,998464,"Television channel programmes"]
[null,null,null,998465,"Broadcasting services"]
[null,null,null,998466,"Home programme distribution services"]
[null,null,null,9985,"Support services"]
[null,null,null,99851,"Employment services including personnel search/referral service & labour supply service"]
[null,null,null,998511,"Executive/retained personnel search services"]
[null,null,null,998512,"Permanent placement services, other than executive search services"]
[null,null,null,998513,"Contract staffing services"]
[null,null,null,998514,"Temporary staffing services"]
[null,null,null,998515,"Long-term staffing (pay rolling) services"]
[null,null,null,998516,"Temporary staffing-to-permanent placement services"]
[null,null,null,998517,"Co-employment staffing services"]
[null,null,null,998519,"Other employment & labour supply services n.e.c"]
[null,null,null,99852,"Investigation and security services"]
[null,null,null,998521,"Investigation services"]
[null,null,null,998522,"Security consulting services"]
[null,null,null,998523,"Security systems services"]
[null,null,null,998524,"Armoured car services"]
[null,null,null,998525,"Guard services"]
[null,null,null,998526,"Training of guard dogs"]
[null,null,null,998527,"Polygraph services"]
[null,null,null,998528,"Fingerprinting services"]
[null,null,null,998529,"Other security services n.e.c."]
[null,null,null,99853,"Cleaning services"]
[null,null,null,998531,"Disinfecting and exterminating services"]
[null,null,null,998532,"Window cleaning services"]
[null,null,null,998533,"General cleaning services"]
[null,null,null,998534,"Specialized cleaning services for reservoirs and tanks"]
[null,null,null,998535,"Sterilization of objects or premises"]
[null,null,null,998536,"Furnace and chimney cleaning services"]
[null,null,null,998537,"Exterior cleaning of buildings of all types"]
[null,null,null,998538,"Cleaning of transportation equipment"]
[null,null,null,998539,"Other cleaning services n.e.c."]
[null,null,null,99854,"Packaging services"]
[null,null,null,998541,"Packaging services of goods for others"]
[null,null,null,998542,"Parcel packing and gift wrapping"]
[null,null,null,"998543","Coin and currency packing services"]
[null,null,null,998549,"Other packaging services n.e.c"]
[null,null,null,99855,"Travel arrangement, tour operator and related services"]
[null,null,null,998551,"Reservation services for transportation"]
[null,null,null,998552,"Reservation services for accommodation, cruises and package tours"]
[null,null,null,998553,"Reservation services for convention centres, congress centres and exhibition halls"]
[null,null,null,998554,"Reservation services for event tickets, cinema halls, entertainment and recreational services and other reservation services"]
[null,null,null,998555,"Tour operator services"]
[null,null,null,998556,"Tourist guide services"]
[null,null,null,998557,"Tourism promotion and visitor information services"]
[null,null,null,998559,"Other travel arrangement and related services n.e.c"]
[null,null,null,99859,"Other support services"]
[null,null,null,998591,"Credit reporting services"]
[null,null,null,998592,"Collection agency services"]
[null,null,null,998593,"Telephone-based support services"]
[null,null,null,998594,"Combined office administrative services"]
[null,null,null,998595,"Specialized office support services such as duplicating services, mailing services, document preparation etc"]
[null,null,null,998596,"Events, Exhibitions, Conventions and trade shows organisation and assistance services"]
[null,null,null,998597,"Landscape care and maintenance services"]
[null,null,null,998598,"Other information services"]
[null,null,null,998599,"Other support services n.e.c."]
[null,null,null,9986,"Support services to agriculture, hunting, forestry, fishing, mining"]
[null,null,null,99861,"and utilities"]
[null,null,null,998611,"Support services to crop production"]
[null,null,null,998612,"Animal husbandry services"]
[null,null,null,998613,"Support services to hunting"]
[null,null,null,998614,"Support services to forestry and logging"]
[null,null,null,998615,"Support services to fishing"]
[null,null,null,998619,"Other support services to agriculture, hunting, forestry and fishing"]
[null,null,null,99862,"Support services to mining"]
[null,null,null,998621,"Support services to oil and gas extraction"]
[null,null,null,998622,"Support services to other mining n.e.c."]
[null,null,null,99863,"Support services to electricity, gas and water distribution"]
[null,null,null,998631,"Support services to electricity transmission and distribution"]
[null,null,null,998632,"Support services to gas distribution"]
[null,null,null,998633,"Support services to water distribution"]
[null,null,null,998634,"Support services to Distribution services of steam, hot water and air-conditioning supply"]
[null,null,null,9987,"Maintenance, repair and installation (except construction) services"]
[null,null,null,99871,"Maintenance and repair services of fabricated metal products, machinery and equipment"]
[null,null,null,998711,"Maintenance and repair services of fabricated metal products, except machinery and equipment."]
[null,null,null,998712,"Maintenance and repair services of office and accounting machinery"]
[null,null,null,998713,"Maintenance and repair services of computers and peripheral equipment"]
[null,null,null,998714,"Maintenance and repair services of transport machinery and equipment"]
[null,null,null,998715,"Maintenance and repair services of electrical household appliances"]
[null,null,null,998716,"Maintenance and repair services of telecommunication equipments and apparatus"]
[null,null,null,998717,"Maintenance and repair services of commercial and industrial machinery."]
[null,null,null,998718,"Maintenance and repair services of elevators and escalators"]
[null,null,null,998719,"Maintenance and repair services of other machinery and equipments"]
[null,null,null,99872,"Repair services of other goods"]
[null,null,null,998721,"Repair services of footwear and leather goods"]
[null,null,null,998722,"Repair services of watches, clocks and jewellery"]
[null,null,null,998723,"Repair services of garments and household textiles"]
[null,null,null,998724,"Repair services of furniture"]
[null,null,null,998725,"Repair services of bicycles"]
[null,null,null,998726,"Maintenance and repair services of musical instruments"]
[null,null,null,998727,"Repair services for photographic equipment and cameras"]
[null,null,null,998729,"Maintenance and repair services of other goods n.e.c."]
[null,null,null,99873,"Installation services (other than construction)"]
[null,null,null,998731,"Installation services of fabricated metal products, except machinery and equipment."]
[null,null,null,998732,"Installation services of industrial, manufacturing and service industry machinery and equipment."]
[null,null,null,998733,"Installation services of office and accounting machinery and computers"]
[null,null,null,998734,"Installation services of radio, television and communications equipment and apparatus."]
[null,null,null,998735,"Installation services of professional medical machinery and equipment, and precision and optical instruments."]
[null,null,null,998736,"Installation services of electrical machinery and apparatus n.e.c."]
[null,null,null,998739,"Installation services of other goods n.e.c."]
[null,null,null,9988,"Manufacturing services on physical inputs owned by others"]
[null,null,null,99881,"Food, beverage and tobacco manufacturing services"]
[null,null,null,998811,"Meat processing services"]
[null,null,null,998812,"Fish processing services"]
[null,null,null,998813,"Fruit and vegetables processing services"]
[null,null,null,998814,"Vegetable and animal oil and fat manufacturing services"]
[null,null,null,998815,"Dairy product manufacturing services"]
[null,null,null,998816,"Other food product manufacturing services"]
[null,null,null,998817,"Prepared animal feeds manufacturing services"]
[null,null,null,998818,"Beverage manufacturing services"]
[null,null,null,998819,"Tobacco manufacturing services n.e.c."]
[null,null,null,99882,"Textile, wearing apparel and leather manufacturing services"]
[null,null,null,998821,"Textile manufacturing services"]
[null,null,null,998822,"Wearing apparel manufacturing services"]
[null,null,null,998823,"Leather and leather product manufacturing services"]
[null,null,null,99883,"Wood and paper manufacturing services"]
[null,null,null,998831,"Wood and wood product manufacturing services"]
[null,null,null,998832,"Paper and paper product manufacturing services"]
[null,null,null,99884,"Petroleum, chemical and pharmaceutical product manufacturing services"]
[null,null,null,998841,"Coke and refined petroleum product manufacturing services"]
[null,null,null,998842,"Chemical product manufacturing services"]
[null,null,null,998843,"Pharmaceutical product manufacturing services"]
[null,null,null,99885,"Rubber, plastic and other non-metallic mineral product manufacturing service"]
[null,null,null,998851,"Rubber product manufacturing services"]
[null,null,null,998852,"Plastic product manufacturing services"]
[null,null,null,998853,"Other non-metallic mineral product manufacturing services"]
[null,null,null,99886,"Basic metal manufacturing services"]
[null,null,null,"998861","Basic metal manufacturing services"]
[null,null,null,99887,"Fabricated metal product, machinery and equipment manufacturing services"]
[null,null,null,998871,"Structural metal product, tank, reservoir and steam generator manufacturing services"]
[null,null,null,998872,"Weapon and ammunition manufacturing services"]
[null,null,null,998873,"Other fabricated metal product manufacturing and metal treatment services"]
[null,null,null,998874,"Computer, electronic and optical product manufacturing services"]
[null,null,null,998875,"Electrical equipment manufacturing services"]
[null,null,null,998876,"General-purpose machinery manufacturing services  "]
[null,null,null,998877,"Special-purpose machinery manufacturing services"]
[null,null,null,99888,"Transport equipment manufacturing services"]
[null,null,null,998881,"Motor vehicle and trailer manufacturing services"]
[null,null,null,998882,"Other transport equipment manufacturing services"]
[null,null,null,99889,"Other manufacturing services"]
[null,null,null,998891,"Furniture manufacturing services"]
[null,null,null,998892,"Jewellery manufacturing services"]
[null,null,null,998893,"Imitation jewellery manufacturing services"]
[null,null,null,998894,"Musical instrument manufacturing services"]
[null,null,null,998895,"Sports goods manufacturing services"]
[null,null,null,998896,"Game and toy manufacturing services"]
[null,null,null,998897,"Medical and dental instrument and supply manufacturing services"]
[null,null,null,998899,"Other manufacturing services n.e.c."]
[null,null,null,9989,"Other manufacturing services; publishing, printing and reproduction services; materials recovery services "]
[null,null,null,99891,"Publishing, printing and reproduction services"]
[null,null,null,998911,"Publishing, on a fee or contract basis"]
[null,null,null,998912,"Printing and reproduction services of recorded media, on a fee or contract basis"]
[null,null,null,99892,"Moulding, pressing, stamping, extruding and similar plastic manufacturing services"]
[null,null,null,998921,"Moulding, pressing, stamping, extruding and similar plastic manufacturing services"]
[null,null,null,99893,"Casting, forging, stamping and similar metal manufacturing services"]
[null,null,null,998931,"Iron and steel casting services"]
[null,null,null,998932,"Non-ferrous metal casting services"]
[null,null,null,998933,"Metal forging, pressing, stamping, roll forming and powder metallurgy services"]
[null,null,null,99894,"Materials recovery (recycling) services, on a fee or contract basis"]
[null,null,null,998941,"Metal waste and scrap recovery (recycling) services, on a fee or contract basis"]
[null,null,null,998942,"Non-metal waste and scrap recovery (recycling) services, on a fee or contract basis"]
[null,null,null,9991,"Public administration and other services provided to the community as a whole; compulsory social security services"]
[null,null,null,99911,"Administrative services of the government"]
[null,null,null,999111,"Overall Government public services"]
[null,null,null,999112,"Public administrative services related to the provision of educational, health care, cultural and other social services, excluding social security service."]
[null,null,null,999113,"Public administrative services related to the more efficient operation of business."]
[null,null,null,999119,"Other administrative services of the government n.e.c."]
[null,null,null,99912,"Public administrative services provided to the community as a whole"]
[null,null,null,999121,"Public administrative services related to external affairs, diplomatic and consular services abroad."]
[null,null,null,999122,"Services related to foreign economic aid"]
[null,null,null,999123,"Services related to foreign military aid"]
[null,null,null,999124,"Military defence services"]
[null,null,null,999125,"Civil defence services"]
[null,null,null,999126,"Police and fire protection services"]
[null,null,null,999127,"Public administrative services related to law courts"]
[null,null,null,999128,"Administrative services related to the detention or rehabilitation of criminals."]
[null,null,null,999129,"Public administrative services related to other public order and safety affairs n.e.c."]
[null,null,null,99913,"Administrative services related to compulsory social security schemes."]
[null,null,null,999132,"Administrative services related to government employee pension schemes; old-age disability or survivors' benefit schemes, other than for government employees"]
[null,null,null,999133,"Administrative services related to unemployment compensation benefit schemes"]
[null,null,null,999134,"Administrative services related to family and child allowance programmes"]
[null,null,null,9992,"Education services"]
[null,null,null,99921,"Pre-primary education services"]
[null,null,null,999210,"Pre-primary education services"]
[null,null,null,99922,"Primary education services"]
[null,null,null,999220,"Primary education services"]
[null,null,null,99923,"Secondary Education Services"]
[null,null,null,999231,"Secondary education services, general"]
[null,null,null,999232,"Secondary education services, technical and vocational."]
[null,null,null,99924,"Higher education services"]
[null,null,null,999241,"Higher education services, general"]
[null,null,null,999242,"Higher education services, technical"]
[null,null,null,999243,"Higher education services, vocational"]
[null,null,null,999249,"Other higher education services"]
[null,null,null,99925,"Specialised education services"]
[null,null,null,999259,"Specialised education services"]
[null,null,null,99929,"Other education & training services and educational support services"]
[null,null,null,999291,"Cultural education services"]
[null,null,null,999292,"Sports and recreation education services"]
[null,null,null,999293,"Commercial training and coaching services"]
[null,null,null,999294,"Other education and training services n.e.c."]
[null,null,null,999295,"services involving conduct of examination for admission to educational institutions"]
[null,null,null,999299,"Other Educational support services"]
[null,null,null,9993,"Human health and social care services "]
[null,null,null,99931,"Human health services"]
[null,null,null,999311,"Inpatient services"]
[null,null,null,999312,"Medical and dental services"]
[null,null,null,999313,"Childbirth and related services"]
[null,null,null,999314,"Nursing and Physiotherapeutic services"]
[null,null,null,999315,"Ambulance services"]
[null,null,null,999316,"Medical Laboratory and Diagnostic-imaging services"]
[null,null,null,999317,"Blood, sperm and organ bank services"]
[null,null,null,999319,"Other human health services including homeopathy, unani, ayurveda, naturopathy, acupuncture etc."]
[null,null,null,99932,"Residential care services for the elderly and disabled"]
[null,null,null,999321,"Residential health-care services other than by hospitals"]
[null,null,null,999322,"Residential care services for the elderly and persons with disabilities"]
[null,null,null,99933,"Other social services with accommodation"]
[null,null,null,999331,"Residential care services for children suffering from mental retardation, mental health illnesses or substance abuse"]
[null,null,null,999332,"Other social services with accommodation for children"]
[null,null,null,999333,"Residential care services for adults suffering from mental retardation, mental health illnesses or substance abuse"]
[null,null,null,999334,"Other social services with accommodation for adults"]
[null,null,null,99934,"Social services without accommodation for the elderly and disabled"]
[null,null,null,999341,"Vocational rehabilitation services"]
[null,null,null,999349,"Other social services without accommodation for the elderly and disabled n.e.c."]
[null,null,null,99935,"Other social services without accommodation"]
[null,null,null,999351,"Child day-care services"]
[null,null,null,999352,"Guidance and counseling services n.e.c. related to children"]
[null,null,null,999353,"Welfare services without accommodation"]
[null,null,null,999359,"Other social services without accommodation n.e.c."]
[null,null,null,9994,"Sewage and waste collection, treatment and disposal and other environmental protection service"]
[null,null,null,99941,"Sewerage, sewage treatment and septic tank cleaning services"]
[null,null,null,999411,"Sewerage and sewage treatment services"]
[null,null,null,999412,"Septic tank emptying and cleaning services"]
[null,null,null,99942,"Waste collection services"]
[null,null,null,999421,"Collection services of hazardous waste"]
[null,null,null,999422,"Collection services of non-hazardous recyclable materials"]
[null,null,null,999423,"General waste collection services, residential"]
[null,null,null,999424,"General waste collection services, other n.e.c."]
[null,null,null,99943,"Waste treatment and disposal services"]
[null,null,null,999431,"Waste preparation, consolidation and storage services"]
[null,null,null,999432,"Hazardous waste treatment and disposal services"]
[null,null,null,999433,"Non-hazardous waste treatment and disposal services"]
[null,null,null,99944,"Remediation services"]
[null,null,null,999441,"Site remediation and clean-up services"]
[null,null,null,999442,"Containment, control and monitoring services and other site remediation services"]
[null,null,null,999443,"Building remediation services"]
[null,null,null,999449,"Other remediation services n.e.c."]
[null,null,null,99945,"Sanitation and similar services"]
[null,null,null,999451,"Sweeping and snow removal services"]
[null,null,null,999459,"Other sanitation services n.e.c."]
[null,null,null,99949,"Others"]
[null,null,null,999490,"Other environmental protection services n.e.c."]
[null,null,null,9995,"Services of membership organizations"]
[null,null,null,99951,"Services furnished by business, employers and professional organizations Services"]
[null,null,null,999511,"Services furnished by business and employers organizations"]
[null,null,null,999512,"Services furnished by professional organizations"]
[null,null,null,99952,"Services furnished by trade unions"]
[null,null,null,999520,"Services furnished by trade unions"]
[null,null,null,99959,"Services furnished by other membership organizations"]
[null,null,null,999591,"Religious services"]
[null,null,null,999592,"Services furnished by political organizations"]
[null,null,null,999593,"Services furnished by human rights organizations"]
[null,null,null,999594,"Cultural and recreational associations"]
[null,null,null,999595,"Services furnished by environmental advocacy groups"]
[null,null,null,999596,"Services provided by youth associations"]
[null,null,null,999597,"Other civic and social organizations"]
[null,null,null,999598,"Home owners associations"]
[null,null,null,999599,"Services provided by other membership organizations n.e.c."]
[null,null,null,9996,"Recreational, cultural and sporting services "]
[null,null,null,99961,"Audiovisual and related services"]
[null,null,null,999611,"Sound recording services"]
[null,null,null,999612,"Motion picture, videotape, television and radio programme production services"]
[null,null,null,999613,"Audiovisual post-production services"]
[null,null,null,999614,"Motion picture, videotape and television programme distribution services"]
[null,null,null,999615,"Motion picture projection services"]
[null,null,null,99962,"Performing arts and other live entertainment event presentation and promotion services"]
[null,null,null,999621,"Performing arts event promotion and organization services"]
[null,null,null,999622,"Performing arts event production and presentation services"]
[null,null,null,999623,"Performing arts facility operation services"]
[null,null,null,999629,"Other performing arts and live entertainment services n.e.c."]
[null,null,null,99963,"Services of performing and other artists"]
[null,null,null,999631,"Services of performing artists including actors, readers, musicians, singers, dancers, TV personalities, independent models etc"]
[null,null,null,999632,"Services of authors, composers, sculptors and other artists, except performing artists"]
[null,null,null,999633,"Original works of authors, composers and other artists except performing artists, painters and sculptors"]
[null,null,null,99964,"Museum and preservation services"]
[null,null,null,999641,"Museum and preservation services of historical sites and buildings"]
[null,null,null,999642,"Botanical, zoological and nature reserve services"]
[null,null,null,99965,"Sports and recreational sports services"]
[null,null,null,999651,"Sports and recreational sports event promotion and organization services"]
[null,null,null,999652,"Sports and recreational sports facility operation services"]
[null,null,null,999659,"Other sports and recreational sports services n.e.c."]
[null,null,null,99966,"Services of athletes and related support services"]
[null,null,null,999661,"Services of athletes"]
[null,null,null,999662,"Support services related to sports and recreation"]
[null,null,null,99969,"Other amusement and recreational services"]
[null,null,null,999691,"Amusement park and similar attraction services"]
[null,null,null,999692,"Gambling and betting services including similar online services"]
[null,null,null,999693,"Coin-operated amusement machine services"]
[null,null,null,999694,"Lottery services"]
[null,null,null,999699,"Other recreation and amusement services n.e.c."]
[null,null,null,9997,"Other services "]
[null,null,null,99971,"Washing, cleaning and dyeing services"]
[null,null,null,999711,"Coin-operated laundry services"]
[null,null,null,999712,"Dry-cleaning services (including fur product cleaning services)"]
[null,null,null,999713,"Other textile cleaning services"]
[null,null,null,999714,"Pressing services"]
[null,null,null,999715,"Dyeing and colouring services"]
[null,null,null,999719,"Other washing, cleaning and dyeing services n.e.c"]
[null,null,null,99972,"Beauty and physical well-being services"]
[null,null,null,999721,"Hairdressing and barbers services"]
[null,null,null,999722,"Cosmetic treatment (including cosmetic/plastic surgery), manicuring and pedicuring services"]
[null,null,null,999723,"Physical well-being services including health club & fitness centre"]
[null,null,null,999729,"Other beauty treatment services n.e.c."]
[null,null,null,99973,"Funeral, cremation and undertaking services"]
[null,null,null,999731,"Cemeteries and cremation services"]
[null,null,null,999732,"Undertaking services"]
[null,null,null,99979,"Other miscellaneous services"]
[null,null,null,999791,"Services involving commercial use or exploitation of any event"]
[null,null,null,999792,"Agreeing to do an act"]
[null,null,null,999793,"Agreeing to refrain from doing an act"]
[null,null,null,999794,"Agreeing to tolerate an act"]
[null,null,null,999795,"Conduct of religious ceremonies/rituals by persons"]
[null,null,null,999799,"Other services n.e.c."]
[null,null,null,9998,"Domestic services"]
[null,null,null,99980,"Domestic services"]
[null,null,null,999800,"Domestic services both part time & full time"]
[null,null,null,9999,"Services provided by extraterritorial organizations and bodies. "]
[null,null,null,99990,"Services provided by extraterritorial organizations and bodies."]
[null,null,null,999900,"Services provided by extraterritorial organizations and bodies"]
[null,null,null,9983,"Other professional, technical and business services (except research, development, legal and accounting services)"]